{"text_format":"1","workbook":"xlsx","n_sheets":15,"sheets":["FACTURE PATH PNW - MAI 2022","Table 1","Feuil2","Feuil2 (2)","Feuil4","Liquid Février (DSA)","Pour Facture","Pour Facture (2)","Feuil1","explications (3)","Feuil1 (2)","Feuil5","Feuil6","Feuil7","Feuil8"],"not_rendered":{"charts":0,"images":9,"macros":1,"external_links":2,"defined_names":4,"comments":1,"pivot_tables":0},"unopened":[],"bounds":{"document_bytes":16777216,"sheet_cells":100000,"rows_first":2000,"rows_last":500,"rows_between":2000,"halvings":0,"cell_chars":16384,"cell_head_chars":4096},"cells_cut":0,"cells_raw":0,"read":"whole","date_system":"1900"}

{"sheet":"FACTURE PATH PNW - MAI 2022","index":0,"n_rows":56,"n_cols":11,"rows_kept":56,"cut":false,"hidden":false,"merged":[[20,1,20,3],[24,1,24,3],[25,1,25,3],[26,1,26,3],[27,1,27,3],[28,1,28,3],[22,1,22,3],[21,1,21,3],[23,1,23,4],[33,7,34,7],[44,6,44,7],[45,6,45,7],[38,0,38,7],[39,0,39,7],[34,2,34,5],[33,6,34,6],[18,0,19,5],[18,6,19,6],[18,7,19,7],[4,0,7,5],[4,6,7,7],[9,0,13,5],[15,0,16,7],[17,0,17,7],[10,6,10,7]]}
[]
[]
[]
[null,null,null,null,null,null,null,null,null,"Nbre employes"]
["\nPAY NETWORK sarl\n\nBoulevard du 30 juin, n° 124, Immeuble RR HOUSE, Commune de la Gombe                               Kinshasa - RDC\n",null,null,null,null,null,"FACTURE",null,null,1,"employé"]
[]
[]
[]
[]
["Client : \nPROGRAM FOR APPROPRIATE TECHNOLOGY HEALTH asbl DRC\n                                                                                                                                                                              Avenue Mutombo Katshi, n° 10/13, 2ième étage, Commune de la Gombe, \nKinshasa - RDC"]
[null,null,null,null,null,null,"PATH-112052021- FACTURE"]
[]
[]
[null,null,null,null,null,null,"Date :",{"$f":"TODAY()","v":"2022-08-16"}]
[]
["SERVICE DE MISE A DISPOSITION DU PERSONNEL\nMAI 2022"]
[]
["FEVRIER 2022"]
["Description",null,null,null,null,null,"Quantité","PT (USD)"]
[]
["* ","Salaire net",null,null,null,{"$f":"Feuil2!B9","v":"Net salary"},{"$f":"$J$5& \" \"&$K$5","v":"1 employé"},{"$f":"Feuil2!D9","v":2650}]
["* ","Cotisation CNSS Employé",null,null,null,{"$f":"Feuil2!B10","v":"CNSS staff "},{"$f":"$J$5& \" \"&$K$5","v":"1 employé"},{"$f":"Feuil2!D10","v":122.5157878232897}]
["* ","Cotisation CNSS Employeur",null,null,null,{"$f":"Feuil2!B11","v":"CNSS company"},{"$f":"$J$5& \" \"&$K$5","v":"1 employé"},{"$f":"Feuil2!D11","v":318.54104834055323}]
["* ","Cotisation IPR",null,null,null,{"$f":"Feuil2!B12","v":"IPR Taxes"},"1 employé",{"$f":"Feuil2!D12","v":594.92776938270322}]
["* ","Cotisation INPP",null,null,null,{"$f":"Feuil2!B13","v":"INPP company"},"1 employé",{"$f":"Feuil2!D13","v":49.00631512931588}]
["* ","Cotisation ONEM",null,null,null,{"$f":"Feuil2!B14","v":"ONEM company"},"1 employé",{"$f":"Feuil2!D14","v":4.9006315129315885}]
["* ","Frais Médicaux ",null,null,null,{"$f":"Feuil2!B15","v":"Medical Care"},"1 employé",{"$f":"Feuil2!D15","v":50}]
["* ","Frais bancaires",null,null,null,{"$f":"Feuil2!B16","v":"Bank charges"},"1 employé",{"$f":"Feuil2!D16","v":21.981371002695003}]
["* ","Frais de gestion",null,null,null,{"$f":"Feuil2!B17","v":"Pay Network fees"},"1 employé",{"$f":"Feuil2!D17","v":571.78093847872321}]
["* ",null,null,null,null,null,null,{"$f":"Feuil2!D18","v":0}]
["* ",null,null,null,null,null,null,{"$f":"Feuil2!D19","v":{"$error":"#REF!"}}]
[]
[]
["PRIX TOTAL livré client",null,null,null,null,null,"USD",{"$f":"SUM(H21:H29)","v":4383.6538616702119}]
["Nous disons :  ",null,{"$f":"ConvNumberLetter(H34,2,1,1,0)","v":"Quatre mille trois cent quatre-vingt-trois dollars et soixante-cinq cents"},null,null,null,null,null,null,null,{"$f":"SUM(H34-Feuil2!O7)","v":{"$error":"#REF!"}}]
[]
[]
["Modalités de paiement :"]
["Payable par virement bancaire via le compte  00018-000010153326-1200-82 USD, PAY NETWORK SARL, swift "]
["BCDCCDKIXXX, Equity BCDC SA, dans les 5 jours ouvrables de la réception de la présente. "]
[]
[]
[]
[]
[null,null,null,null,null,null,"Yvonne Kusuamina"]
[null,null,null,null,null,null,"Associée-Gérante Statutaire"]
[]
[]
[]
[]
[]
[]
[]
[]
[]
["www.paynetwork.cd"]

{"sheet":"Table 1","index":1,"n_rows":20,"n_cols":11,"rows_kept":20,"cut":false,"hidden":false,"merged":[[17,0,17,11],[13,3,13,4],[18,0,18,11],[19,0,19,11],[12,1,12,2],[12,6,12,8],[12,9,12,10],[13,1,13,2],[13,6,13,8],[13,9,13,10],[0,0,0,11],[4,6,5,11],[2,0,2,4],[10,1,10,2],[10,6,10,8],[10,9,10,10],[8,0,8,11],[9,1,9,2],[9,3,9,5],[9,6,9,8],[9,9,9,10],[1,8,2,11],[10,3,10,4],[11,3,11,4],[12,3,12,4],[5,2,5,4],[6,2,6,3],[11,1,11,2],[11,6,11,8],[11,9,11,10]]}
[]
[null,null,null,null,null,null,null,null,"        F A C T U R E"]
["                1, Avenue Wagenia\n                C/Gombe"]
[]
[null,null,null,null,null,null,"GRANDS HOTELS DU CONGO SA\n04 AV  BATETELA, C/GOMBE\nKINSHASA"]
[null,null,"Référence : BC/DG/072/07/22"]
[null,null,"           Date      : ",null,{"$f":"TODAY()","v":"2022-08-16"}]
[]
[" Intitulé : Facture Gestion des ressources humaines                                                                                                                                                         … ………Grand hôtel du Congo (Juillet  2022)"]
[null,"Quantité",null,"Désignation",null,null,"Prix unitaire HT",null,null,"Prix total"]
[null,null,null,"Cout salarial",null,{"$f":"'Feuil2 (2)'!B15","v":"Coût salarial "},null,null,null,{"$f":"'Feuil2 (2)'!C15","v":30970.35}]
[null,null,null,"Forfait soins médicaux",null,{"$f":"'Feuil2 (2)'!B16","v":"Soins Medicaux 23$ par famille"},null,null,null,{"$f":"'Feuil2 (2)'!C16","v":2622}]
[null,null,null,"Frais de service",null,{"$f":"'Feuil2 (2)'!B17","v":"Frais de Services 9%"},null,null,null,{"$f":"'Feuil2 (2)'!C17","v":2350.59}]
[null,null,null,"TVA 16% des frais de service",null,{"$f":"'Feuil2 (2)'!B18","v":"TVA 16% Frais de Services"},null,null,null,{"$f":"'Feuil2 (2)'!C18","v":385.03999999999996}]
[]
[null,"PRIX TOTAL TTC"]
[null,"Nous disons :  ",null,{"$f":"ConvNumberLetter(K17,2,1,1,0)","v":"Trente-six mille trois cent vingt-sept dollars et nonante-huit cents"},null,null,null,null,null,"USD",{"$f":"SUM(J11:K14)","v":36327.980000000003}]
["En votre aimable règlement, \nCordialement,                                                                                                                                                                                                                       Conditions de paiement : paiement à la réception de la facture,                                                                                                                                                         par chèque ou virement bancaire."]
["RAWBANK : B-CONNECTED SARL\nNUMERO : 05100-05101-01052064101-80 USD"]
["Tout incident de paiement est passible d'intérêt de retard. Le règlement de la facture se fera endéans les 5jours\nIndemnité forfaitaire pour frais de recouvrement due au créancier en cas de retard de paiement : 100$"]

{"sheet":"Feuil2","index":2,"n_rows":20,"n_cols":15,"rows_kept":20,"cut":false,"hidden":false,"merged":[]}
[]
[]
[]
[]
[]
[null,null,null,{"$f":"Feuil4!AT6","v":"Net salary"},{"$f":"Feuil4!AU6","v":"CNSS staff "},{"$f":"Feuil4!AV6","v":"CNSS company"},{"$f":"Feuil4!AW6","v":"IPR Taxes"},{"$f":"Feuil4!AX6","v":"INPP company"},{"$f":"Feuil4!AY6","v":"ONEM company"},{"$f":"Feuil4!AZ6","v":"Medical Care"},{"$f":"Feuil4!BA6","v":"Bank charges"},{"$f":"Feuil4!BB6","v":"Pay Network fees"},{"$f":"Feuil4!BC6","v":"TCC"},{"$f":"Feuil4!BD6","v":0},{"$f":"Feuil4!BE6","v":0}]
[null,null,null,{"$f":"Feuil4!AT10","v":2650},{"$f":"Feuil4!AU10","v":122.5157878232897},{"$f":"Feuil4!AV10","v":318.54104834055323},{"$f":"Feuil4!AW10","v":594.92776938270322},{"$f":"Feuil4!AX10","v":49.00631512931588},{"$f":"Feuil4!AY10","v":4.9006315129315885},{"$f":"Feuil4!AZ10","v":50},{"$f":"Feuil4!BA10","v":21.981371002695003},{"$f":"Feuil4!BB10","v":571.78093847872321},{"$f":"Feuil4!BC10","v":4383.6538616702119},{"$f":"Feuil4!#REF!","v":{"$error":"#REF!"}},{"$f":"Feuil4!#REF!","v":{"$error":"#REF!"}}]
[]
[null,{"$f":"D6","v":"Net salary"},null,{"$f":"D7","v":2650}]
[null,{"$f":"E6","v":"CNSS staff "},null,{"$f":"E7","v":122.5157878232897}]
[null,{"$f":"F6","v":"CNSS company"},null,{"$f":"F7","v":318.54104834055323}]
[null,{"$f":"G6","v":"IPR Taxes"},null,{"$f":"G7","v":594.92776938270322}]
[null,{"$f":"H6","v":"INPP company"},null,{"$f":"H7","v":49.00631512931588}]
[null,{"$f":"I6","v":"ONEM company"},null,{"$f":"I7","v":4.9006315129315885}]
[null,{"$f":"J6","v":"Medical Care"},null,{"$f":"J7","v":50}]
[null,{"$f":"K6","v":"Bank charges"},null,{"$f":"K7","v":21.981371002695003}]
[null,{"$f":"L6","v":"Pay Network fees"},null,{"$f":"L7","v":571.78093847872321}]
[null,{"$f":"M6","v":"TCC"}]
[null,{"$f":"N6","v":0},null,{"$f":"N7","v":{"$error":"#REF!"}}]
[null,{"$f":"O6","v":0},null,{"$f":"O7","v":{"$error":"#REF!"}}]

{"sheet":"Feuil2 (2)","index":3,"n_rows":46,"n_cols":38,"rows_kept":46,"cut":false,"hidden":false,"merged":[[0,11,1,11],[0,0,1,0],[0,1,1,1],[0,2,1,2],[0,3,1,3],[0,4,1,4],[0,5,1,5],[0,6,1,6],[0,7,1,7],[0,8,1,8],[0,9,1,9],[0,10,1,10],[0,18,1,18],[0,12,1,12],[0,13,1,13],[0,14,1,14],[0,15,1,15],[0,16,1,16],[0,17,1,17]]}
["Base imposable","Plafond INSS","Salaire journalier","Ind. Logement ","Ind. Transp ","CNSS QPO","IPR ","Masse salariale","Net à payer","CNSS QPP ","INPP ","ONEM ","Total Charges patronales","Coût salarial ","Soins Medicaux 23$ par famille","Autre prime","Frais de Services 9%","TVA 16% Frais de Services","Total Employeur mensuel"]
[null,null,null,null,null,null,null,null,null,null,null,null,null,null,null,null,null,null,null,{"$f":"Feuil5!AA3","v":0},{"$f":"Feuil5!AB3","v":0},{"$f":"Feuil5!AC3","v":0},{"$f":"Feuil5!AD3","v":0},{"$f":"Feuil5!AE3","v":0},{"$f":"Feuil5!AF3","v":0},{"$f":"Feuil5!AG3","v":0},{"$f":"Feuil5!AH3","v":0},{"$f":"Feuil5!AI3","v":0},{"$f":"Feuil5!AJ3","v":0},{"$f":"Feuil5!AK3","v":0},{"$f":"Feuil5!AL3","v":0},{"$f":"Feuil5!AM3","v":0},{"$f":"Feuil5!AN3","v":0},{"$f":"Feuil5!AO3","v":0},{"$f":"Feuil5!AP3","v":0},{"$f":"Feuil5!AQ3","v":0},{"$f":"Feuil5!AR3","v":0},{"$f":"Feuil5!AS3","v":0}]
[]
[{"$f":"Feuil5!H3","v":"Base imposable"},{"$f":"Feuil5!I3","v":"Plafond INSS"},{"$f":"Feuil5!J3","v":"Salaire journalier"},{"$f":"Feuil5!K3","v":"Ind. Logement "},{"$f":"Feuil5!L3","v":"Ind. Transp "},{"$f":"Feuil5!M3","v":"CNSS QPO"},{"$f":"Feuil5!N3","v":"IPR "},{"$f":"Feuil5!O3","v":"Masse salariale"},{"$f":"Feuil5!P3","v":"Net à payer"},{"$f":"Feuil5!Q3","v":"CNSS QPP "},{"$f":"Feuil5!R3","v":"INPP "},{"$f":"Feuil5!S3","v":"ONEM "},{"$f":"Feuil5!T3","v":"Total Charges patronales"},{"$f":"Feuil5!U3","v":"Coût salarial "},{"$f":"Feuil5!V3","v":"Soins Medicaux 23$ par famille"},{"$f":"Feuil5!W3","v":"Autre prime"},{"$f":"Feuil5!X3","v":"Frais de Services 9%"},{"$f":"Feuil5!Y3","v":"TVA 16% Frais de Services"},{"$f":"Feuil5!Z3","v":"Total Employeur mensuel"}]
[{"$f":"Feuil5!H36","v":0},{"$f":"Feuil5!I36","v":0},{"$f":"Feuil5!J36","v":0},{"$f":"Feuil5!K36","v":0},{"$f":"Feuil5!L36","v":0},{"$f":"Feuil5!M36","v":0},{"$f":"Feuil5!N36","v":0},{"$f":"Feuil5!O36","v":0},{"$f":"Feuil5!P36","v":7828},{"$f":"Feuil5!Q36","v":0},{"$f":"Feuil5!R36","v":0},{"$f":"Feuil5!S36","v":0},{"$f":"Feuil5!T36","v":0},{"$f":"Feuil5!U36","v":9335.32},{"$f":"Feuil5!V36","v":713},{"$f":"Feuil5!W36","v":0},{"$f":"Feuil5!X36","v":705.48},{"$f":"Feuil5!Y36","v":114.32},{"$f":"Feuil5!Z36","v":10868.12}]
[{"$f":"Feuil6!H3","v":"Base imposable"},{"$f":"Feuil6!I3","v":"Plafond INSS"},{"$f":"Feuil6!J3","v":"Salaire journalier"},{"$f":"Feuil6!K3","v":"Ind. Logement "},{"$f":"Feuil6!L3","v":"Ind. Transp "},{"$f":"Feuil6!M3","v":"CNSS QPO"},{"$f":"Feuil6!N3","v":"IPR "},{"$f":"Feuil6!O3","v":"Masse salariale"},{"$f":"Feuil6!P3","v":"Net à payer"},{"$f":"Feuil6!Q3","v":"CNSS QPP "},{"$f":"Feuil6!R3","v":"INPP "},{"$f":"Feuil6!S3","v":"ONEM "},{"$f":"Feuil6!T3","v":"Total Charges patronales"},{"$f":"Feuil6!U3","v":"Coût salarial "},{"$f":"Feuil6!V3","v":"Soins Medicaux 23$ par famille"},{"$f":"Feuil6!W3","v":"Autre prime"},{"$f":"Feuil6!X3","v":"Frais de Services 9%"},{"$f":"Feuil6!Y3","v":"TVA 16% Frais de Services"},{"$f":"Feuil6!Z3","v":"Total Employeur mensuel"}]
[{"$f":"Feuil6!H36","v":0},{"$f":"Feuil6!I36","v":0},{"$f":"Feuil6!J36","v":0},{"$f":"Feuil6!K36","v":0},{"$f":"Feuil6!L36","v":0},{"$f":"Feuil6!M36","v":0},{"$f":"Feuil6!N36","v":0},{"$f":"Feuil6!O36","v":0},{"$f":"Feuil6!P36","v":6422},{"$f":"Feuil6!Q36","v":0},{"$f":"Feuil6!R36","v":0},{"$f":"Feuil6!S36","v":0},{"$f":"Feuil6!T36","v":0},{"$f":"Feuil6!U36","v":7555.23},{"$f":"Feuil6!V36","v":713},{"$f":"Feuil6!W36","v":0},{"$f":"Feuil6!X36","v":583.08000000000004},{"$f":"Feuil6!Y36","v":95.5},{"$f":"Feuil6!Z36","v":8946.81}]
[{"$f":"Feuil7!H3","v":"Base imposable"},{"$f":"Feuil7!I3","v":"Plafond INSS"},{"$f":"Feuil7!J3","v":"Salaire journalier"},{"$f":"Feuil7!K3","v":"Ind. Logement "},{"$f":"Feuil7!L3","v":"Ind. Transp "},{"$f":"Feuil7!M3","v":"CNSS QPO"},{"$f":"Feuil7!N3","v":"IPR "},{"$f":"Feuil7!O3","v":"Masse salariale"},{"$f":"Feuil7!P3","v":"Net à payer"},{"$f":"Feuil7!Q3","v":"CNSS QPP "},{"$f":"Feuil7!R3","v":"INPP "},{"$f":"Feuil7!S3","v":"ONEM "},{"$f":"Feuil7!T3","v":"Total Charges patronales"},{"$f":"Feuil7!U3","v":"Coût salarial "},{"$f":"Feuil7!V3","v":"Soins Medicaux 23$ par famille"},{"$f":"Feuil7!W3","v":"Autre prime"},{"$f":"Feuil7!X3","v":"Frais de Services 9%"},{"$f":"Feuil7!Y3","v":"TVA 16% Frais de Services"},{"$f":"Feuil7!Z3","v":"Total Employeur mensuel"}]
[{"$f":"Feuil7!H36","v":0},{"$f":"Feuil7!I36","v":0},{"$f":"Feuil7!J36","v":0},{"$f":"Feuil7!K36","v":0},{"$f":"Feuil7!L36","v":0},{"$f":"Feuil7!M36","v":0},{"$f":"Feuil7!N36","v":0},{"$f":"Feuil7!O36","v":0},{"$f":"Feuil7!P36","v":6510},{"$f":"Feuil7!Q36","v":0},{"$f":"Feuil7!R36","v":0},{"$f":"Feuil7!S36","v":0},{"$f":"Feuil7!T36","v":0},{"$f":"Feuil7!U36","v":7721.31},{"$f":"Feuil7!V36","v":713},{"$f":"Feuil7!W36","v":0},{"$f":"Feuil7!X36","v":587.30999999999995},{"$f":"Feuil7!Y36","v":99.13},{"$f":"Feuil7!Z36","v":9120.75}]
[{"$f":"Feuil8!G3","v":"Base imposable"},{"$f":"Feuil8!H3","v":"Plafond INSS"},{"$f":"Feuil8!I3","v":"Salaire journalier"},{"$f":"Feuil8!J3","v":"Ind. Logement "},{"$f":"Feuil8!K3","v":"Ind. Transp "},{"$f":"Feuil8!L3","v":"CNSS QPO"},{"$f":"Feuil8!M3","v":"IPR "},{"$f":"Feuil8!N3","v":"Masse salariale"},{"$f":"Feuil8!O3","v":"Net à payer"},{"$f":"Feuil8!P3","v":"CNSS QPP "},{"$f":"Feuil8!Q3","v":"INPP "},{"$f":"Feuil8!R3","v":"ONEM "},{"$f":"Feuil8!S3","v":"Total Charges patronales"},{"$f":"Feuil8!T3","v":"Coût salarial "},{"$f":"Feuil8!U3","v":"Soins Medicaux 23$ par famille"},{"$f":"Feuil8!V3","v":"Autre prime"},{"$f":"Feuil8!W3","v":"Frais de Services 9%"},{"$f":"Feuil8!X3","v":"TVA 16% Frais de Services"},{"$f":"Feuil8!Y3","v":"Total Employeur mensuel"}]
[{"$f":"Feuil8!G26","v":0},{"$f":"Feuil8!H26","v":0},{"$f":"Feuil8!I26","v":0},{"$f":"Feuil8!J26","v":0},{"$f":"Feuil8!K26","v":0},{"$f":"Feuil8!L26","v":0},{"$f":"Feuil8!M26","v":0},{"$f":"Feuil8!N26","v":0},{"$f":"Feuil8!O26","v":5275},{"$f":"Feuil8!P26","v":0},{"$f":"Feuil8!Q26","v":0},{"$f":"Feuil8!R26","v":0},{"$f":"Feuil8!S26","v":0},{"$f":"Feuil8!T26","v":6358.49},{"$f":"Feuil8!U26","v":483},{"$f":"Feuil8!V26","v":0},{"$f":"Feuil8!W26","v":474.72},{"$f":"Feuil8!X26","v":76.09},{"$f":"Feuil8!Y26","v":7392.3}]
[]
["TOTAL",null,null,null,null,null,null,null,{"$f":"SUM(I5+I7+I9+I11)","v":26035},null,null,null,null,{"$f":"SUM(N5+N7+N9+N11)","v":30970.35},{"$f":"SUM(O5+O7+O9+O11)","v":2622},null,{"$f":"SUM(Q5+Q7+Q9+Q11)","v":2350.59},{"$f":"SUM(R5+R7+R9+R11)","v":385.03999999999996},{"$f":"SUM(S5+S7+S9+S11)","v":36327.980000000003}]
[]
[null,{"$f":"N1","v":"Coût salarial "},{"$f":"N13","v":30970.35},{"$f":"N4","v":"Coût salarial "}]
[null,{"$f":"O1","v":"Soins Medicaux 23$ par famille"},{"$f":"O13","v":2622},{"$f":"O4","v":"Soins Medicaux 23$ par famille"}]
[null,{"$f":"Q1","v":"Frais de Services 9%"},{"$f":"Q13","v":2350.59},{"$f":"Q4","v":"Frais de Services 9%"}]
[null,{"$f":"R1","v":"TVA 16% Frais de Services"},{"$f":"R13","v":385.03999999999996},{"$f":"R4","v":"TVA 16% Frais de Services"}]
[null,null,null,null,null,null,"difference ici doit être égal à zero"]
[null,null,{"$f":"SUM(C15:C19)","v":36327.980000000003},null,null,null,{"$f":"SUM(C20-S13)","v":0}]
[]
[]
[]
[null,null,null,{"$f":"Feuil4!AT6","v":"Net salary"},{"$f":"Feuil4!AU6","v":"CNSS staff "},{"$f":"Feuil4!AV6","v":"CNSS company"},{"$f":"Feuil4!AW6","v":"IPR Taxes"},{"$f":"Feuil4!AX6","v":"INPP company"},{"$f":"Feuil4!AY6","v":"ONEM company"},{"$f":"Feuil4!AZ6","v":"Medical Care"},{"$f":"Feuil4!BA6","v":"Bank charges"},{"$f":"Feuil4!BB6","v":"Pay Network fees"},{"$f":"Feuil4!BC6","v":"TCC"},{"$f":"Feuil4!BD6","v":0},{"$f":"Feuil4!BE6","v":0}]
[null,null,null,{"$f":"Feuil4!AT10","v":2650},{"$f":"Feuil4!AU10","v":122.5157878232897},{"$f":"Feuil4!AV10","v":318.54104834055323},{"$f":"Feuil4!AW10","v":594.92776938270322},{"$f":"Feuil4!AX10","v":49.00631512931588},{"$f":"Feuil4!AY10","v":4.9006315129315885},{"$f":"Feuil4!AZ10","v":50},{"$f":"Feuil4!BA10","v":21.981371002695003},{"$f":"Feuil4!BB10","v":571.78093847872321},{"$f":"Feuil4!BC10","v":4383.6538616702119},{"$f":"Feuil4!#REF!","v":{"$error":"#REF!"}},{"$f":"Feuil4!#REF!","v":{"$error":"#REF!"}}]
[]
[null,{"$f":"D24","v":"Net salary"},null,{"$f":"D25","v":2650}]
[null,{"$f":"E24","v":"CNSS staff "},null,{"$f":"E25","v":122.5157878232897}]
[null,{"$f":"F24","v":"CNSS company"},null,{"$f":"F25","v":318.54104834055323}]
[null,{"$f":"G24","v":"IPR Taxes"},null,{"$f":"G25","v":594.92776938270322}]
[null,{"$f":"H24","v":"INPP company"},null,{"$f":"H25","v":49.00631512931588}]
[null,{"$f":"I24","v":"ONEM company"},null,{"$f":"I25","v":4.9006315129315885}]
[null,{"$f":"J24","v":"Medical Care"},null,{"$f":"J25","v":50}]
[null,{"$f":"K24","v":"Bank charges"},null,{"$f":"K25","v":21.981371002695003}]
[null,{"$f":"L24","v":"Pay Network fees"},null,{"$f":"L25","v":571.78093847872321}]
[null,{"$f":"M24","v":"TCC"}]
[null,{"$f":"N24","v":0},null,{"$f":"N25","v":{"$error":"#REF!"}}]
[null,{"$f":"O24","v":0},null,{"$f":"O25","v":{"$error":"#REF!"}}]
[]
[]
[]
[]
[]
[]
[null,null,null,null,null,null,null,null,null,null,null,null,null,null,null,{"$f":"SUM(P13:P43)","v":0},null,null,null,null,{"$f":"SUM(U13:U43)","v":0},{"$f":"SUM(V13:V43)","v":0},null,{"$f":"SUM(X13:X43)","v":0},{"$f":"SUM(Y13:Y43)","v":0},{"$f":"U45+V45+X45+Y45","v":0}]
[null,null,null,null,null,null,null,null,null,null,null,null,null,null,null,{"$f":"SUM(P44-P45)","v":0},null,null,null,null,{"$f":"SUM(U44-U45)","v":0},{"$f":"SUM(V44-V45)","v":0},null,{"$f":"SUM(X44-X45)","v":0},{"$f":"SUM(Y44-Y45)","v":0},{"$f":"SUM(Z44-Z45)","v":0}]

{"sheet":"Feuil4","index":4,"n_rows":11,"n_cols":55,"rows_kept":11,"cut":false,"hidden":true,"merged":[[4,44,4,54],[5,10,5,11],[9,0,10,22],[9,23,9,24],[10,23,10,24],[4,20,4,39]]}
[]
[]
[null,null,null,"PAYROLL","MAY 2022",null,null,null,null,null,null,null,null,null,null,null,null,null,null,null,null,null,null,"PAYROLL",{"$f":"+E3","v":"MAY 2022"},null,null,null,null,null,null,null,null,null,null,null,null,null,null,null,null,null,null,null,null,null,null,null,"PAYROLL",{"$f":"+Y3","v":"MAY 2022"}]
[]
[null,null,null,null,null,null,null,null,null,null,null,null,null,null,null,null,null,null,null,null,"STAFF COST",null,null,null,null,null,null,null,null,null,null,null,null,null,null,null,null,null,null,null,null,null,null,null,"COMPANY COST"]
[null,"Name","Middle Name","First Name","Position","Account number","Bank","Job Grading","Entry on Duty","End of contract","Seniority up to ",null,"Calendar days","Contract","Assignment","City","Hospital","Gross salary","Basic salary","Spouse","Children","Working days","Leave days","Currency","Exchange rate","Basic salary","Leave","13th month","Exchange rate gap","Gross taxable salary","CNSS","Net before taxes",null,"IPR Taxes","Net after taxes","Housing","Transport","Autres remboursements","Salary advance","Net salary",null,null,null,null,"Name","Net salary","CNSS staff ","CNSS company","IPR Taxes","INPP company","ONEM company","Medical Care","Bank charges","Pay Network fees","TCC"]
[1,"KIVUDI","KAPITA","Rossyl",null,"15101-10044173501-14","Rawbank sa","Managers","2022-01-01","2022-02-28","2022-05-31",{"$f":"(K7-I7)/30","v":5},22,"CDD","PATH","Kinshasa","EPA",{"$f":"Y7+AI7+AJ7","v":4470.7946399248431},2445.9748022168055,0,1,22,0,"USD ",2004.13,{"$f":"S7/M7*V7","v":2445.9748022168055},{"$f":"S7/M7*W7","v":0},0,4.3409542489885151,{"$f":"SUM(Z7:AC7)","v":2450.315756465794},{"$f":"AD7*5/100","v":122.5157878232897},{"$f":"AD7-AE7","v":2327.7999686425042},{"$f":"AG8/Y7","v":594.92776938270322},{"$f":"AH8/Y7","v":594.92776938270322},{"$f":"AF7-AH7","v":1732.8721992598009},{"$f":"(Z7+AA7)*30/100","v":733.79244066504168},{"$f":"IF(P7=\"Matadi\",(1200*V7)/Y7,(1000/12)/M7*V7)","v":83.333333333333329},100,0,{"$f":"AI7+AJ7+AK7+AL7-AM7","v":2649.997973258176},2550,{"$f":"AO7-AN7","v":-99.997973258175989},{"$f":"+AP7+AC7","v":-95.657019009187479},{"$f":"+A7","v":1},{"$f":"+CONCATENATE(B7,\" \",C7,\" \",D7)","v":"KIVUDI KAPITA Rossyl"},{"$f":"ROUND(AN7,2)","v":2650},{"$f":"AE7","v":122.5157878232897},{"$f":"AD7*13/100","v":318.54104834055323},{"$f":"AH7","v":594.92776938270322},{"$f":"AD7*2/100","v":49.00631512931588},{"$f":"AD7*0.2/100","v":4.9006315129315885},{"$f":"IF(N7=\"CDD\",50,0)","v":50},{"$f":"((AT7+AU7+AV7+AW7+AX7+AY7+AZ7)*0.5/100)+(((AT7+AU7+AV7+AW7+AX7+AY7+AZ7)*0.5/100)*16/100)","v":21.981371002695003},{"$f":"((AT7+AU7+AV7+AW7+AX7+AY7+AZ7+BA7)*15/100)","v":571.78093847872321},{"$f":"SUM(AT7:BB7)","v":4383.6538616702119}]
[null,null,null,null,null,null,null,null,null,null,null,null,null,null,null,null,null,null,null,null,null,null,null,"CDF",2004.13,{"$f":"Z7*Y8","v":4902051.4803667665},{"$f":"AA7*Y8","v":0},{"$f":"AB7*Y8","v":0},{"$f":"+AC7*Y7","v":8699.8366390253541},{"$f":"AD7*Y8","v":4910751.3170057917},{"$f":"AE7*Y8","v":245537.5658502896},{"$f":"AF7*Y8","v":4665213.7511555022},{"$f":"IF(AND(AF8>0,AF8<162001),4860,IF(AND(AF8>162000,AF8<1800001),(4860+(((AF8-162000)*15/100)-(4860+(AF8-162000)*15/100)*((T7+U7)*2/100))),IF(AND(AF8>1800000,AF8<3600001),(250560+(((AF8-1800000)*30/100)-(250560+(AF8-1800000)*30/100)*((T7+U7)*2/100))),IF(AND(AF8>3600000,AF8<100000000000),(790560+(((AF8-3600000)*40/100)-(790560+(AF8-3600000)*40/100)*((T7+U7)*2/100))),(AF8*30/100)))))","v":1192312.590452957},{"$f":"IF(AND(AG8<2000),2000,IF(AND(AG8>(AF8*30/100)),AF8*30/100,AG8))","v":1192312.590452957},{"$f":"AI7*Y8","v":3472901.1607025452},{"$f":"AJ7*Y8","v":1470615.4441100301},{"$f":"AK7*Y8","v":167010.83333333334},{"$f":"AL7*Y8","v":200413},{"$f":"AM7*Y8","v":0},{"$f":"AN7*Y8","v":5310940.4381459085},null,null,null,null,null,{"$f":"AT7*Y8","v":5310944.5},{"$f":"AU7*Y8","v":245537.5658502896},{"$f":"AV7*Y8","v":638397.67121075303},{"$f":"AW7*Y8","v":1192312.590452957},{"$f":"AX7*Y8","v":98215.026340115845},{"$f":"AY7*Y8","v":9821.5026340115855},{"$f":"AZ7*Y8","v":100206.5},{"$f":"BA7*Y8","v":44053.525067631141},{"$f":"BB7*Y8","v":1145923.3322333635},{"$f":"BC7*Y8","v":8785412.2137891222}]
[]
[null,null,null,null,null,null,null,null,null,null,null,null,null,null,null,null,null,null,null,null,null,null,null,"USD ",null,{"$f":"+Z7","v":2445.9748022168055},0,0,4.3409542489885151,2450.315756465794,122.5157878232897,2327.7999686425042,594.92776938270322,594.92776938270322,1732.8721992598009,733.79244066504168,83.333333333333329,100,0,2649.997973258176,2550,-99.997973258175989,null,null,null,{"$f":"+AT7","v":2650},122.5157878232897,318.54104834055323,594.92776938270322,49.00631512931588,4.9006315129315885,50,21.981371002695003,571.78093847872321,4383.6538616702119]
[null,null,null,null,null,null,null,null,null,null,null,null,null,null,null,null,null,null,null,null,null,null,null,"CDF",null,4902051.4803667665,0,0,8699.8366390253541,4910751.3170057917,245537.5658502896,4665213.7511555022,1192312.590452957,1192312.590452957,3472901.1607025452,1470615.4441100301,167010.83333333334,200413,0,5310940.4381459085,null,null,null,null,null,5310944.5,245537.5658502896,638397.67121075303,1192312.590452957,98215.026340115845,9821.5026340115855,100206.5,44053.525067631141,1145923.3322333635,8785412.2137891222]

{"sheet":"Liquid Février (DSA)","index":5,"n_rows":51,"n_cols":11,"rows_kept":51,"cut":false,"hidden":false,"merged":[[31,7,32,7],[32,1,32,5],[16,0,17,7],[44,6,44,7],[45,6,45,7],[35,0,35,7],[36,0,36,7],[4,0,8,5],[4,6,8,7],[10,0,14,5],[14,6,14,7],[19,0,20,5],[19,6,20,6],[19,7,20,7]]}
[]
[]
[]
[null,null,null,null,null,null,null,null,null,"Nbre employes"]
["\nPAY NETWORK sarl\n\nBoulevard du 30 juin, 124, Immeuble RR HOUSE\nGombe Kinshasa RDC\n",null,null,null,null,null,"FACTURE",null,null,13,"employés"]
[]
[null,null,null,null,null,null,null,null,null,"Date",{"$f":"TODAY()","v":"2022-08-16"}]
[]
[]
[]
["Client :\nLIQUID TELECOM \n\n9ème étage, immeuble 1113, Boulevard du 30 juin, Commune de la Gombe,  Kinshasa-RDC ",null,null,null,null,null,null,null,null,null,"LT-09022022-FACTURE "]
[null,null,null,null,null,null,"LT-10032022-FACTURE ",null,null,null,"SERVICE DE MISE A DISPOSITION DES EMPLOYES (DSA) – JANVIER 2022 "]
[]
[]
[null,null,null,null,null,null,"Date : 04-03-2022"]
[]
["SERVICE DE MISE A DISPOSITION DES EMPLOYES (DSA) – FEVRIER 2022 "]
[]
[]
["Description",null,null,null,null,null,"Quantité","PT (USD)"]
[]
["* Salaires nets",null,null,null,null,null,{"$f":"$J$5& \" \"&$K$5","v":"13 employés"},{"$f":"+'[1]Février (DSA)'!$AV$34+'[1]Février (DSA)'!$BE$34","v":3670.5894117647058}]
["* Cotisations CNSS",null,null,null,null,null,"13 employés",{"$f":"+'[1]Février (DSA)'!$AW$34+'[1]Février (DSA)'!$AX$34","v":470.54705776383207}]
["* Contributions IPR",null,null,null,null,null,"13 employés",{"$f":"+'[1]Février (DSA)'!$AY$34","v":235.19824810960893}]
["* Cotisations INPP",null,null,null,null,null,"13 employés",{"$f":"+'[1]Février (DSA)'!$BA$34","v":52.28300641820357}]
["* Cotisations ONEM",null,null,null,null,null,"13 employés",{"$f":"+'[1]Février (DSA)'!$BB$34","v":5.2283006418203577}]
["* Contribution Medicale",null,null,null,null,null,"13 employés",{"$f":"+SUM([2]Feuil4!$F$13:$F$25)","v":650}]
["* Communication",null,null,null,null,null,"13 employés",{"$f":"+[2]Feuil4!$G$26","v":260}]
["* Frais bancaires",null,null,null,null,null,5.7999999999999996E-3,{"$f":"+'[1]Février (DSA)'!$BD$34","v":25.716306943249396}]
["* Frais de gestion",null,null,null,null,null,{"$f":"$J$5& \" \"&$K$5","v":"13 employés"},{"$f":"+'[1]Février (DSA)'!$BG$34","v":220.23536470588235}]
["* TVA",null,null,null,null,null,0.16,{"$f":"+H30*0.16","v":35.237658352941175}]
["PRIX TOTAL livré client",null,null,null,null,null,null,{"$f":"SUM(H22:H31)","v":5625.0353547002433}]
["Nous disons :  ",{"$f":"ConvNumberLetter(H32,2,1,1,0)","v":"Cinq mille six cent vingt-cinq dollars et quatre cents"},null,null,null,null,"USD"]
[]
["Modalités de paiement :"]
["Payable par virement bancaire via le compte  00018-000010153326-1200-82 USD, PAY NETWORK SARL, swift "]
["BCDCCDKIXXX, Equity BCDC SA, dans les 5 jours ouvrables de la réception de la présente. "]
[]
[]
[]
[]
[]
[]
[]
[null,null,null,null,null,null,"Yvonne Kusuamina"]
[null,null,null,null,null,null,"Associée-Gérante Statutaire"]
[]
[]
[]
[]
["www.paynetwork.cd"]

{"sheet":"Pour Facture","index":6,"n_rows":30,"n_cols":7,"rows_kept":30,"cut":false,"hidden":true,"merged":[[25,2,25,4],[18,4,18,6],[19,4,19,6],[20,4,20,6],[21,4,21,6],[22,2,22,4],[23,2,23,4],[17,4,17,6],[6,4,6,6],[7,4,7,6],[8,4,8,6],[9,4,9,6],[10,4,10,6],[11,4,11,6],[12,4,12,6],[13,4,13,6],[14,4,14,6],[15,4,15,6],[16,4,16,6]]}
[]
[]
[]
[]
[]
[]
[]
[null,null,"Description","Quantité","PT (USD)"]
[]
[null,null,"§ Salaires nets","10 employés",22009.29]
[]
[null,null,"§ Cotisations INSS","10 employés",3542.23]
[]
[null,null,"§ Contributions IPR","10 employés",1869.51]
[]
[null,null,"§ Contributions INPP","10 employés",393.58]
[]
[null,null,"§ Contributions ONEM","10 employés",39.36]
[]
[null,null,"§ Frais bancaires","0.58%",33.9]
[]
[null,null,"§ Frais de gestion","10 employés",1]
[]
[null,null,"PRIX TOTAL livré client"]
[null,null,"Nous disons : US Dollars",{"$f":"ConvNumberLetter(G25,2,1,1,0)","v":"Vingt-sept mille huit cent quatre-vingt-huit dollars et quatre-vingt-sept cents"},null,"  USD",{"$f":"SUM(E10:G22)","v":27888.870000000003}]
[]
[]
[]
[]
[null,null,null,{"$f":"ConvNumberLetter(G25,0,1,1)","v":"Vingt-sept mille huit cent quatre-vingt-huit virgule quatre-vingt-sept"}]

{"sheet":"Pour Facture (2)","index":7,"n_rows":30,"n_cols":7,"rows_kept":30,"cut":false,"hidden":true,"merged":[[25,2,25,4],[18,4,18,6],[19,4,19,6],[20,4,20,6],[21,4,21,6],[22,2,22,4],[23,2,23,4],[17,4,17,6],[6,4,6,6],[7,4,7,6],[8,4,8,6],[9,4,9,6],[10,4,10,6],[11,4,11,6],[12,4,12,6],[13,4,13,6],[14,4,14,6],[15,4,15,6],[16,4,16,6]]}
[]
[]
[]
[]
[]
[]
[]
[null,null,"Description","Quantité","PT (USD)"]
[]
[null,null,"§ Salaires nets","10 employés",0]
[]
[null,null,"§ Cotisations INSS","10 employés",0]
[]
[null,null,"§ Contributions IPR","10 employés",0]
[]
[null,null,"§ Contributions INPP","10 employés",1]
[]
[null,null,"§ Contributions ONEM","10 employés",1]
[]
[null,null,"§ Frais bancaires","0.58%",91]
[]
[null,null,"§ Frais de gestion","10 employés",1.23]
[]
[null,null,"PRIX TOTAL livré client"]
[null,null,"Nous disons : US Dollars",{"$f":"ConvNumberLetter(G25,2,1,2,0)","v":"NONANTE-QUATRE DOLLARS ET VINGT-TROIS CENTS"},null,"  USD",{"$f":"SUM(E10:G22)","v":94.23}]
[]
[]
[]
[]
[null,null,null,{"$f":"ConvNumberLetter(G25,0,1,1)","v":"Nonante-quatre virgule vingt-trois"}]

{"sheet":"Feuil1","index":8,"n_rows":55,"n_cols":17,"rows_kept":55,"cut":false,"hidden":true,"merged":[[3,16,4,16],[28,1,28,12],[32,1,32,2],[32,3,32,4],[32,5,32,6],[32,7,32,8],[32,9,32,11],[37,7,40,9],[37,10,37,12],[38,10,38,12],[39,10,39,12],[40,10,40,12],[33,1,33,2],[33,3,33,4],[33,5,33,6],[33,7,33,8],[35,7,35,11],[54,1,54,2],[54,7,54,8],[41,7,46,9],[41,10,41,12],[42,10,42,12],[43,10,43,12],[44,10,44,12],[45,10,45,12],[46,10,46,12],[48,1,48,5],[50,1,50,5],[50,7,50,11],[51,1,51,3],[51,7,51,9]]}
[]
[null,null,null,null,null,null,null,null,null,null,null,null,null,null,"BANQUE ","NUMERO DE COMPTE","INTITULE DU COMPTE"]
[]
[null,null,null,null,null,null,null,null,null,null,null,null,null,null,"BCDC-USD","00011-02101-00001158769-77 USD","PAY NETWORK SARL"]
[null,null,null,null,null,null,null,null,null,null,null,null,null,null,"BCDC-CDF","00011-02101-00001097518-15 CDF"]
[null,null,null,null,null,null,null,null,null,null,null,null,null,null,"BOA  USD","00029-01017-01158600007-21","PAY NETWORK SARL"]
[null,null,null,null,null,null,"         RECEIPT VOUCHER",null,null,null,null,null,null,null,"ECOBANK  USD","00026-00001-03621171701-90","PAY NETWORK SARL"]
[null,null,null,null,null,null,null,null,null,null,null,null,null,null,"FBNBANK-USD","00014-11000-20300173094-92"]
[null,null,null,null,null,null,"RV N° : ",null,null,"0004/10/21/MM",null,null,null,null,"FBNBANK-CDF","00014-11000-20300172946-41","PAY NETWORK SARL"]
[null,null,null,null,null,null,"DATE :",null,null,"2021-10-08",null,null,null,null,"EQUITYBANK USD","00018-00001-01533261200-82","PAY NETWORK SARL"]
[null,"1. Description/Expense",null,null,null,null,null,null,null,null,null,null,null,null,"PROCREDIT USD2","00018-00008-01533261202-68","PAY NETWORK SARL"]
[null,"Beneficiary: PAY NETWORK",null,null,null,null,null,null,null,null,null,null,null,null,"PROCREDIT CDF","00018-00001-01533261101-88"]
[null,"Details: APPROVISIONNEMENT DE COMPTES",null,null,null,null,null,null,null,null,null,null,null,null,"PROCREDIT EUR","00018-00008-01533261301-62"]
[null,"Beneficiary bank: ECOBANK",null,null,null,null,"Accountant number: 00026-00001-03621171701-90",null,null,null,null,null,null,null,"RAWBANK-USD","05100 25101 01018044101 96"]
[null,null,null,null,null,null,null,null,null,null,null,null,null,null,"RAWBANK-CDF","05100 25101 01018044102 93","PAY NETWORK V/C USD"]
[null,"Documents joints: LISTE APPROVISIONNEMENT DES COMPTES",null,null,null,null,null,null,null,null,null,null,null,null,"RAWBANK-USD/ICFI","05100 25101 01018044103 90"]
[null,null,null,null,null,null,null,null,null,null,null,null,null,null,"TMB-USD","00017-11000-50017300101-12","PAY NETWORK SARL"]
[null,"Debit bank: EQUITY",null,null,null,null,"Debtor account number: 00018-00001-01533261200-82",null,null,null,null,null,null,null,"TMB-CDF","00017-11000-50017300000-24"]
[null,null,null,null,null,null,null,null,null,null,null,null,null,null,"UBA USD","00030068044032000280624 / 040320002806","PAY NETWORK SARL"]
[null,"Invoice",null,"Contract/extract",null,"B/C",null,"B/L",null,"D/A",null,"Proforma"]
[]
[null,"2. Amount"]
[null,"Currency:",null,"USD",null,"EUROS",null,"CDF"]
[null,"Total bill:",null,20000,null,0,null,0]
[null,"To deduce:",null,0,null,0]
[null,"To execute:",null,{"$f":"D24-D25","v":20000},null,{"$f":"F24-F25","v":0},null,{"$f":"H24-H25","v":0}]
[]
[null,"In letters:",{"$f":"ConvNumberLetter(D24,2,1,2,0)","v":"VINGT MILLE DOLLARS"}]
[]
[]
[null,"3. Monitoring budget/Imputation"]
[]
[null,"Prevision",null,"Availability",null,"To pay",null,"Difference/Prevision",null,"Budget/Accountant code"]
[]
[]
[null,null,null,null,null,null,null,"6. Emission et contrôle titres de paiement"]
[]
[null,"4. Prepared by Finance Assistant",null,null,null,null,null,"COMPTABILITE",null,null,"IN"]
[]
[null,"Nom: MABULU MARC ",null,null,null,null,null,null,null,null,"OUT"]
[null,"Date/Signature"]
[null,{"$f":"J10","v":"2021-10-08"},null,null,null,null,null,"TRESORERIE",null,null,"IN"]
[null,"5.1 Approval/Authorization by Finance Officer"]
[null,null,null,null,null,null,null,null,null,null,"OUT"]
[null,"Nom: NZANZU JEAN-CLAUDE"]
[null,"Date/Signature",null,null,null,null,null,null,null,null,"Cheque/OP N°"]
[]
[]
[null,"5.2 Approval/Authorization"]
[]
[null,"Approved by:",null,null,null,null,null,"Authorized by:"]
[null,"Finance Manager ",null,null,null,null,null,"Chief Executive Officer"]
[]
[null,"Nom: NZANZU MUHINDO"]
[null,"Date/Signature",null,null,null,null,null,"Date/Signature"]

{"sheet":"explications (3)","index":9,"n_rows":30,"n_cols":10,"rows_kept":30,"cut":false,"hidden":true,"merged":[]}
[999.99,{"$f":"ConvNumberLetter(A1,2,0,0,1)","v":"neuf cent quatre-vingt-dix-neuf dollars et quatre-vingt-dix-neuf cents"}]
[70.25,"soixante-dix dollars et vingt-cinq cents",null,null,null,null,null,null,null,"Code tiré de cette discussion"]
[0.01,"zéro dollar et un cent"]
[2000000.02,"deux millions de dollars et deux cents"]
[null,"zéro dollar zéro cent",null,null,null,null,null,"="]
[1000,{"$f":"ConvNumberLetter(A6,0,0,1)","v":"Mille"}]
[null,"zéro dollar zéro cent"]
[null,"zéro dollar zéro cent"]
[null,"zéro dollar zéro cent"]
[null,"zéro dollar zéro cent"]
[null,"zéro dollar zéro cent"]
[null,"zéro dollar zéro cent"]
[null,"zéro dollar zéro cent"]
[91,"quatre-vingt-onze dollars zéro cent"]
[91.32,{"$f":"ConvNumberLetter(A15,2,0,0,0)","v":"quatre-vingt-onze dollars et trente-deux cents"}]
[]
[]
[]
[]
[]
[]
[null,{"$f":"ConvNumberLetter(A22,0,1,1)","v":"Zéro"}]
[null,"Zéro"]
[null,"Zéro"]
[null,"Zéro"]
[91.23,{"$f":"ConvNumberLetter(A26,0,1,1)","v":"Nonante et un virgule vingt-trois"}]
[null,"Zéro"]
[null,"Zéro"]
[6000,{"$f":"ConvNumberLetter(A29,0,1,1)","v":"Six mille"}]
[91,"Nonante et un"]

{"sheet":"Feuil1 (2)","index":10,"n_rows":55,"n_cols":17,"rows_kept":55,"cut":false,"hidden":true,"merged":[[3,16,4,16],[28,1,28,12],[32,1,32,2],[32,3,32,4],[32,5,32,6],[32,7,32,8],[32,9,32,11],[37,7,40,9],[37,10,37,12],[38,10,38,12],[39,10,39,12],[40,10,40,12],[33,1,33,2],[33,3,33,4],[33,5,33,6],[33,7,33,8],[35,7,35,11],[54,1,54,2],[54,7,54,8],[41,7,46,9],[41,10,41,12],[42,10,42,12],[43,10,43,12],[44,10,44,12],[45,10,45,12],[46,10,46,12],[48,1,48,5],[50,1,50,5],[50,7,50,11],[51,1,51,3],[51,7,51,9]]}
[]
[null,null,null,null,null,null,null,null,null,null,null,null,null,null,"BANQUE ","NUMERO DE COMPTE","INTITULE DU COMPTE"]
[]
[null,null,null,null,null,null,null,null,null,null,null,null,null,null,"BCDC-USD","00011-02101-00001158769-77 USD","PAY NETWORK SARL"]
[null,null,null,null,null,null,null,null,null,null,null,null,null,null,"BCDC-CDF","00011-02101-00001097518-15 CDF"]
[null,null,null,null,null,null,null,null,null,null,null,null,null,null,"BOA  USD","00029-01017-01158600007-21","PAY NETWORK SARL"]
[null,null,null,null,null,null,"         RECEIPT VOUCHER",null,null,null,null,null,null,null,"ECOBANK  USD","00026-00001-03621171701-90","PAY NETWORK SARL"]
[null,null,null,null,null,null,null,null,null,null,null,null,null,null,"FBNBANK-USD","00014-11000-20300173094-92"]
[null,null,null,null,null,null,"RV N° : ",null,null,"0004/10/21/MM",null,null,null,null,"FBNBANK-CDF","00014-11000-20300172946-41","PAY NETWORK SARL"]
[null,null,null,null,null,null,"DATE :",null,null,"2021-10-08",null,null,null,null,"EQUITYBANK USD","00018-00001-01533261200-82","PAY NETWORK SARL"]
[null,"1. Description/Expense",null,null,null,null,null,null,null,null,null,null,null,null,"PROCREDIT USD2","00018-00008-01533261202-68","PAY NETWORK SARL"]
[null,"Beneficiary: PAY NETWORK",null,null,null,null,null,null,null,null,null,null,null,null,"PROCREDIT CDF","00018-00001-01533261101-88"]
[null,"Details: APPROVISIONNEMENT DE COMPTES",null,null,null,null,null,null,null,null,null,null,null,null,"PROCREDIT EUR","00018-00008-01533261301-62"]
[null,"Beneficiary bank: ECOBANK",null,null,null,null,"Accountant number: 00026-00001-03621171701-90",null,null,null,null,null,null,null,"RAWBANK-USD","05100 25101 01018044101 96"]
[null,null,null,null,null,null,null,null,null,null,null,null,null,null,"RAWBANK-CDF","05100 25101 01018044102 93","PAY NETWORK V/C USD"]
[null,"Documents joints: LISTE APPROVISIONNEMENT DES COMPTES",null,null,null,null,null,null,null,null,null,null,null,null,"RAWBANK-USD/ICFI","05100 25101 01018044103 90"]
[null,null,null,null,null,null,null,null,null,null,null,null,null,null,"TMB-USD","00017-11000-50017300101-12","PAY NETWORK SARL"]
[null,"Debit bank: EQUITY",null,null,null,null,"Debtor account number: 00018-00001-01533261200-82",null,null,null,null,null,null,null,"TMB-CDF","00017-11000-50017300000-24"]
[null,null,null,null,null,null,null,null,null,null,null,null,null,null,"UBA USD","00030068044032000280624 / 040320002806","PAY NETWORK SARL"]
[null,"Invoice",null,"Contract/extract",null,"B/C",null,"B/L",null,"D/A",null,"Proforma"]
[]
[null,"2. Amount"]
[null,"Currency:",null,"USD",null,"EUROS",null,"CDF"]
[null,"Total bill:",null,20000,null,0,null,0]
[null,"To deduce:",null,0,null,0]
[null,"To execute:",null,{"$f":"D24-D25","v":20000},null,{"$f":"F24-F25","v":0},null,{"$f":"H24-H25","v":0}]
[]
[null,"In letters:",{"$f":"ConvNumberLetter(D24,2,1,2,0)","v":"VINGT MILLE DOLLARS"}]
[]
[]
[null,"3. Monitoring budget/Imputation"]
[]
[null,"Prevision",null,"Availability",null,"To pay",null,"Difference/Prevision",null,"Budget/Accountant code"]
[]
[]
[null,null,null,null,null,null,null,"6. Emission et contrôle titres de paiement"]
[]
[null,"4. Prepared by Finance Assistant",null,null,null,null,null,"COMPTABILITE",null,null,"IN"]
[]
[null,"Nom: MABULU MARC ",null,null,null,null,null,null,null,null,"OUT"]
[null,"Date/Signature"]
[null,{"$f":"J10","v":"2021-10-08"},null,null,null,null,null,"TRESORERIE",null,null,"IN"]
[null,"5.1 Approval/Authorization by Finance Officer"]
[null,null,null,null,null,null,null,null,null,null,"OUT"]
[null,"Nom: NZANZU JEAN-CLAUDE"]
[null,"Date/Signature",null,null,null,null,null,null,null,null,"Cheque/OP N°"]
[]
[]
[null,"5.2 Approval/Authorization"]
[]
[null,"Approved by:",null,null,null,null,null,"Authorized by:"]
[null,"Finance Manager ",null,null,null,null,null,"Chief Executive Officer"]
[]
[null,"Nom: NZANZU MUHINDO"]
[null,"Date/Signature",null,null,null,null,null,"Date/Signature"]

{"sheet":"Feuil5","index":11,"n_rows":38,"n_cols":26,"rows_kept":38,"cut":false,"hidden":false,"merged":[[2,11,3,11],[2,12,3,12],[2,13,3,13],[2,0,3,0],[2,1,3,1],[2,2,3,2],[2,3,3,3],[2,4,3,4],[2,7,3,7],[39,0,45,16383],[2,20,3,20],[2,21,3,21],[2,22,3,22],[2,23,3,23],[2,24,3,24],[2,25,3,25],[2,14,3,14],[2,15,3,15],[2,16,3,16],[2,17,3,17],[2,18,3,18],[2,19,3,19],[2,8,3,8],[2,9,3,9],[2,10,3,10]]}
[]
[null,null,null,null,null,null,null,null,null,"ETAT DE PAIE GRANDS HOTELS DU CONGO JUILLET 2022"]
["N°","Noms","Fonction","Matricule","Localisation","Pointage du mois",null,"Base imposable","Plafond INSS","Salaire journalier","Ind. Logement ","Ind. Transp ","CNSS QPO","IPR ","Masse salariale","Net à payer","CNSS QPP ","INPP ","ONEM ","Total Charges patronales","Coût salarial ","Soins Medicaux 23$ par famille","Autre prime","Frais de Services 9%","TVA 16% Frais de Services","Total Employeur mensuel"]
[null,null,null,null,null,"Jrs prestés","Jour maladie"]
[1,"BOUSSE BONDJEMBO RAPHAEL","COACH FITNESS","BC0239","Kinshasa",22,null,180.00419864559819,189.47810383747176,13.65,56.84,66,9.4739051918735893,27,336.47,300,24.632153498871332,3.7895620767494358,0.37895620767494359,28.800671783295712,365.27,23,0,27,4.32,419.59]
[2,"WANGO GBENI GBAGBA FREDDY","COACH FITNESS","BC0240","Kinshasa",22,null,180.00419864559819,189.47810383747176,13.65,56.84,66,9.4739051918735893,27,336.47,300,24.632153498871332,3.7895620767494358,0.37895620767494398,28.800671783295712,365.27,23,0,27,4.32,419.59]
[3,"KENA MWAUKE JUNIOR","COACH FITNESS","BCO241","Kinshasa",21,null,111.38117381489843,117.24334085778781,10,35.173002257336343,66,5.8621670428893911,16.7,242.56,220,15.241634311512417,2.3448668171557565,0.23448668171557563,17.820987810383748,260.38,23,0,19.8,3.16,306.33999999999997]
[4,"MASIALA NELSON","COACH YOGA","BC0248","Kinshasa",26,null,94.225417607223477,99.184650112866834,"FIXE",29.755395033860047,78,4.9592325056433415,14.13,219.09,200,12.894004514672687,1.9836930022573367,0.19836930022573368,15.076066817155757,234.17,23,0,18,3,278.17]
[5,"EKONDA MAPHULU DANNY","MAITRE NAGEUR","BC0298","Kinshasa",26,null,351.56176072234757,370.06501128668168,"FIXE",111.0195033860045,78,18.503250564334085,52.7,571.20000000000005,500,48.108451467268623,7.4013002257336336,0.74013002257336336,56.249881715575619,627.45000000000005,23,0,45,7.2,702.65]
[6,"MUZINGA MAFUTA RICHARD","PISCINISTE","BC0299","Kinshasa",26,null,222.89358916478545,234.62483069977418,"FIXE",70.387449209932257,78,11.731241534988708,33.4,395.13,350,30.501227990970644,4.692496613995484,0.46924966139954838,35.662974266365673,430.79,23,0,31.5,5.04,490.33]
[7,"KASONGO GILMA","CUISINIER",null,"Kinshasa",24,null,97.66,102.79638826185101,8.5,31,72,5.1398194130925514,15,224.14,204,13.363530474040632,2.05592776523702,0.205592776523702,15.625051015801352,240,23,0,18.36,3,284.36]
[8,"MAVINGA CONCILIE","COMMIS DE CUISINE",null,"Kinshasa",27,null,119.95905191873585,126.27268623024828,8.5,37.880000000000003,69,6.31,18,254.31,230,16.415449209932277,2.5254537246049655,0.25254537246049658,19.193448306997741,273.5,23,0,21,3.36,321]
[9,"NGOBIE MAURICE","COMMIS DE CUISINE",null,"Kinshasa",24,null,97.66,102.79638826185101,8.5,31,72,5.1398194130925514,15,224.14,204,13.363530474040632,2.05592776523702,0.205592776523702,15.625051015801352,240,23,0,18.36,3,284.36]
[10,"TSHUNZA KALONJI JONATHAN","STEWARDING",null,"Kinshasa",24,null,97.66,102.79638826185101,8.5,31,72,5.1398194130925514,15,224.14,204,13.363530474040632,2.05592776523702,0.205592776523702,15.625051015801352,240,23,0,18.36,3,284.36]
[11,"MUNGA DUMUNU LESLY FANNY","AGENT COMM",null,"Kinshasa",15,null,120.81683972911965,127.17562076749435,15.38,38.152686230248307,36,6.36,18.12,255.48,231,16.532830699774266,2.5435124153498871,0.25435124153498873,19.330694356659144,274.81,23,0,20.79,3.32,321.92]
[12,"KOLANGAS HENRY","WELCOMER ","BC0200","Kinshasa",22,null,83.407720000000012,87.797600000000017,8.5,26.339280000000006,66,4.3899999999999997,12.51,203.9,187,11.413688000000004,1.7559520000000004,0.17559520000000003,13.345235200000005,217.25,23,0,16.829999999999998,3,260.08]
[13,"BILAMBO JOHN","WELCOMER ","BC0207","Kinshasa",20,null,70.487719999999996,74.197600000000008,8.5,22.26,60,3.71,10.57,184.28,170,9.6456880000000016,1.4839520000000002,0.1483952,11.278035200000003,195.56,23,0,15.3,2.44,236.3]
[14,"KINAMVUIDI FORTUNAT","WELCOMER ",null,"Kinshasa",26,null,112.2389616252822,118.1462753950339,8.5,35.443882618510166,78,5.9073137697516946,16.829999999999998,243.74,221,15.359015801354408,2.3629255079006781,0.23629255079006778,17.958233860045155,261.69,23,0,19.89,3.1824000000000003,307.76]
[15,"NSUMBU DAVE ","STANDARDISTE","BC0202","Kinshasa",22,null,212.60013544018054,223.78961625282165,15.38,67.136884875846491,66,11.19,19.13,368.32,337.99999999999994,29.092650112866814,4.4757923250564327,0.4475792325056433,34.016021670428891,402.34,23,0,30.42,4.8600000000000003,460.62]
[16,"MAKAYA CHRISTIE ","RECEPTIONNISTE","BC0242","Kinshasa",22,null,212.60013544018054,223.78961625282165,15.38,67.136884875846491,66,11.19,19.13,368.32,337.99999999999994,29.092650112866814,4.4757923250564327,0.4475792325056433,34.016021670428891,402.34,23,0,30.42,4.8600000000000003,460.62]
[17,"MAFUTA DIVINE ","RECEPTIONNISTE","BC0252","Kinshasa",22,null,212.60013544018054,223.78961625282165,15.38,67.136884875846491,66,11.19,19.13,368.32,337.99999999999994,29.092650112866814,4.4757923250564327,0.4475792325056433,34.016021670428891,402.34,23,0,30.42,4.8600000000000003,460.62]
[18,"NSUKAMI JESSICA JULIANNA ","AGENT RESERVAT","BC0253","Kinshasa",22,null,212.60013544018054,223.78961625282165,15.38,67.136884875846491,66,11.19,19.13,368.32,337.99999999999994,29.092650112866814,4.4757923250564327,0.4475792325056433,34.016021670428891,402.34,23,0,30.42,4.8600000000000003,460.62]
[19,"TSHISENSA JONATHAN","CHAUFFEUR ","BC0254","Kinshasa",22,null,111.38117381489843,117.24334085778781,10,35.173002257336343,66,5.8621670428893911,16.7,242.56,220,15.241634311512417,2.3448668171557565,0.23448668171557563,17.820987810383748,260.38,23,0,19.8,3.16,306.33999999999997]
[20,"MASAMBA CHRISTIVIE","PROTOCOLE",null,"Kinshasa",21,null,102.8032957110609,108.21399548532726,10,32.464198645598181,63,5.4106997742663632,15.42,230.83,209.99999999999994,14.067819413092545,2.1642799097065453,0.21642799097065454,16.448527313769745,247.28,23,0,18.899999999999999,3.02,292.2]
[21,"NGOYI FISTON","STANDARDISTE","BC0223","Kinshasa",25,null,137.11000000000001,144.33137697516932,10,43.299413092550793,75,7.2165688487584667,21,278.22000000000003,250,18.763079006772013,2.8866275395033862,0.28866275395033864,21.938369300225734,300.16000000000003,23,0,22.5,3.6,349.26000000000005]
[22,"NTUMBA ELIE","CHAUFFEUR ","BC0218","Kinshasa",21,null,102.8032957110609,108.21399548532726,10,32.464198645598181,63,5.4106997742663632,15.42,230.83,209.99999999999994,14.067819413092545,2.1642799097065453,0.21642799097065454,16.448527313769745,247.28,23,0,18.899999999999999,3.02,292.2]
[23,"TSHILUMBA JOEL","CHAUFFEUR ","BC0243","Kinshasa",21,null,102.8032957110609,108.21399548532726,10,32.464198645598181,63,5.4106997742663632,15.42,230.83,209.99999999999994,14.067819413092545,2.1642799097065453,0.21642799097065454,16.448527313769745,247.28,23,0,18.899999999999999,3.02,292.2]
[24,"BENDERA GLORIA","RECEPTIONNISTE","BC0230","Kinshasa",22,null,212.60013544018054,223.78961625282165,15.38,67.136884875846491,66,11.19,19.13,368.32,337.99999999999994,29.092650112866814,4.4757923250564327,0.4475792325056433,34.016021670428891,402.34,23,0,30.42,4.8600000000000003,460.62]
[25,"KATAMBAY KABWE REAGAN","SUPERVISEUR","BC0244","Kinshasa",20,null,186.86650112866823,196.70158013544025,15.38,59.010474040632069,60,9.8350790067720144,28.03,345.87,308.00000000000011,25.571205417607235,3.9340316027088051,0.39340316027088051,29.89864018058692,375.77,23,0,27.72,4.43,430.92]
[26,"MISSAGUY JONATHAN","VALET","BC0214","Kinshasa",27,null,119.95905191873585,126.27268623024828,8.5,37.880000000000003,69,6.31,18,254.31,230,16.415449209932277,2.5254537246049655,0.25254537246049658,19.193448306997741,273.5,23,0,21,3.36,321]
[27,"LUTETE CHRISTIAN","VALET","BC0213","Kinshasa",23,null,90.7942663656885,95.572911963882618,8.5,28.67,69,4.7786455981941316,14,215,196,12.424478555304741,1.9114582392776525,0.19114582392776527,14.52708261851016,230,23,0,18,3,274]
[28,"MUTUALE SUMBILA PATIENT","VALET","BC0235","Kinshasa",22,null,83.407720000000012,87.797600000000017,8.5,26.339280000000006,66,4.3899999999999997,12.51,203.9,187,11.413688000000004,1.7559520000000004,0.17559520000000003,13.345235200000005,217.25,23,0,16.829999999999998,3,260.08]
[29,"MBIKAYI FABRICE ","VALET","BC0227","Kinshasa",21,null,77.327719999999999,81.397600000000025,8.5,24.419280000000008,63,4.07,12,195,179,10.581688000000003,1.6279520000000005,0.16279520000000006,12.372435200000005,207.37,23,0,16.11,3,249.48]
[30,"BOLISOMI FATHY","VALET","BC0262","Kinshasa",25,null,105.37665914221219,110.92279909706546,8.5,33.276839729119637,75,5.55,15.8,234.35,213,14.419963882618511,2.2184559819413092,0.22184559819413094,16.860265462753947,251.21,23,0,19.169999999999998,3.0671999999999997,296.44720000000007]
[31,"KOSEKO CESAR ","VALET","BC0281","Kinshasa",24,null,97.656568848758454,102.79638826185101,8.5,31,72,5.1398194130925514,15,224.14,204,13.363530474040632,2.05592776523702,0.205592776523702,15.625051015801352,240,23,0,18.36,3,284.36]
[null,null,null,null,null,null,null,null,null,null,null,null,null,null,null,7828,null,null,null,null,9335.32,713,null,705.48,114.32,10868.12]
[null,null,null,null,null,null,null,null,null,null,null,null,null,null,null,{"$f":"SUM(P5:P35)","v":7828},null,null,null,null,{"$f":"SUM(U5:U35)","v":9335.32},{"$f":"SUM(V5:V35)","v":713},null,{"$f":"SUM(X5:X35)","v":705.48000000000013},{"$f":"SUM(Y5:Y35)","v":114.31959999999998},{"$f":"U37+V37+X37+Y37","v":10868.1196}]
[null,null,null,null,null,null,null,null,null,null,null,null,null,null,null,{"$f":"SUM(P36-P37)","v":0},null,null,null,null,{"$f":"SUM(U36-U37)","v":0},{"$f":"SUM(V36-V37)","v":0},null,{"$f":"SUM(X36-X37)","v":-1.1368683772161603E-13},{"$f":"SUM(Y36-Y37)","v":4.0000000001327862E-4},{"$f":"SUM(Z36-Z37)","v":4.0000000080908649E-4}]

{"sheet":"Feuil6","index":12,"n_rows":38,"n_cols":26,"rows_kept":38,"cut":false,"hidden":false,"merged":[[2,11,3,11],[2,12,3,12],[2,13,3,13],[2,0,3,0],[2,1,3,1],[2,2,3,2],[2,3,3,3],[2,4,3,4],[2,7,3,7],[38,0,44,16383],[2,20,3,20],[2,21,3,21],[2,22,3,22],[2,23,3,23],[2,24,3,24],[2,25,3,25],[2,14,3,14],[2,15,3,15],[2,16,3,16],[2,17,3,17],[2,18,3,18],[2,19,3,19],[2,8,3,8],[2,9,3,9],[2,10,3,10]]}
[]
[null,null,null,null,null,null,null,null,null,"ETAT DE PAIE GRANDS HOTELS DU CONGO JUILLET 2022"]
["N°","Noms","Fonction","Matricule","Localisation","Pointage du mois",null,"Base imposable","Plafond INSS","Salaire journalier","Ind. Logement ","Ind. Transp ","CNSS QPO","IPR ","Masse salariale","Net à payer","CNSS QPP ","INPP ","ONEM ","Total Charges patronales","Coût salarial ","Soins Medicaux 23$ par famille","Autre prime","Frais de Services 9%","TVA 16% Frais de Services","Total Employeur mensuel"]
[null,null,null,null,null,"Jrs prestés","Jour maladie"]
[32,"KUTADISA BENIE","VALET","BC0257","Kinshasa",25,null,105.37665914221219,110.92279909706546,8.5,33.276839729119637,75,5.55,15.8,234.35,213,14.419963882618511,2.2184559819413092,0.22184559819413094,16.860265462753947,251.21,23,0,19.169999999999998,3.0671999999999997,296.44720000000007]
[33,"LAKIORE NGAPI JUNIOR","VALET","BC0273","Kinshasa",24,null,97.66,102.79638826185101,8.5,31,72,5.1398194130925514,15,224.14,204,13.363530474040632,2.05592776523702,0.205592776523702,15.625051015801352,240,23,0,18.36,3,284.36]
[34,"LOMBE BLANCHARD ","VALET ","BC0274","Kinshasa",27,null,119.95905191873585,126.27268623024828,8.5,37.880000000000003,69,6.31,18,254.31,230,16.415449209932277,2.5254537246049655,0.25254537246049658,19.193448306997741,273.5,23,0,21,3.36,320.86]
[35,"MBOYO BRUNO","VALET","BC0282","Kinshasa",29,null,134.5414446952596,141.62257336343114,8.5,42.486772009029345,78.003,7.0811286681715577,20.18,274.26,247,18.41093453724605,2.8324514672686232,0.2832451467268623,21.526631151241535,295.79000000000002,23,0,22.23,3.5,344.52]
[36,"MUNGEY CEDRICK","VALET","BC0283","Kinshasa",26,null,112.2389616252822,118.1462753950339,8.5,35.443882618510166,78,5.9073137697516946,16.829999999999998,243.74,221,15.359015801354408,2.3629255079006781,0.23629255079006778,17.958233860045155,261.69,23,0,19.89,3.1824000000000003,307.76]
[37,"NDOFUSU OLIVIER ","VALET","BC0270","Kinshasa",24,null,97.66,102.79638826185101,8.5,31,72,5.1398194130925514,15,224.14,204,13.363530474040632,2.05592776523702,0.205592776523702,15.625051015801352,240,23,0,18.36,3,284.36]
[38,"MBUYI NAOMIE","VALET","BC0249","Kinshasa",15,null,38.567720000000001,40.5976,8.5,12.179279999999999,45,2.0298799999999999,5.78,135.81,128,5.2776880000000004,0.81195200000000001,8.1195199999999995E-2,6.1708352000000009,141.97999999999999,23,0,11.52,1.84,178.34]
[39,"MASINGO IRENE","VALET","BC0300","Kinshasa",23,null,90.7942663656885,95.572911963882618,8.5,28.67,69,4.7786455981941316,14,215,196,12.424478555304741,1.9114582392776525,0.19114582392776527,14.52708261851016,230,23,0,18,3,274]
[40,"MAFUTA BIENVENU ","EQUIPIER","BC0215","Kinshasa",25,null,105.37665914221219,110.92279909706546,8.5,33.276839729119637,75,5.55,15.8,234.35,213,14.419963882618511,2.2184559819413092,0.22184559819413094,16.860265462753947,251.21,23,0,19.169999999999998,3.0671999999999997,296.44720000000007]
[41,"MATONDO KONDE ELVIS","EQUIPIER","BC0230","Kinshasa",23,null,90.7942663656885,95.572911963882618,8.5,28.67,69,4.7786455981941316,14,215,196,12.424478555304741,1.9114582392776525,0.19114582392776527,14.52708261851016,230,23,0,18,3,274]
[42,"NZEY BLAISE","EQUIPIER","BC0234","Kinshasa",27,null,119.95905191873585,126.27268623024828,8.5,37.880000000000003,69,6.31,18,254.31,230,16.415449209932277,2.5254537246049655,0.25254537246049658,19.193448306997741,273.5,23,0,21,3.36,320.86]
[43,"NDJOLI FERDINAND DICKY","EQUIPIER","BC0237","Kinshasa",23,null,90.7942663656885,95.572911963882618,8.5,28.67,69,4.7786455981941316,14,215,196,12.424478555304741,1.9114582392776525,0.19114582392776527,14.52708261851016,230,23,0,18,3,274]
[44,"KABUNDA PIERROT","EQUIPIER","BC0247","Kinshasa",21,null,77.327719999999999,81.397600000000025,8.5,24.419280000000008,63,4.07,12,195,179,10.581688000000003,1.6279520000000005,0.16279520000000006,12.372435200000005,207.37,23,0,16.11,3,249.48]
[45,"ATUBUNA ANTA","EQUIPIER","BC0263","Kinshasa",24,null,97.656568848758454,102.79638826185101,8.5,31,72,5.1398194130925514,15,224.14,204,13.363530474040632,2.05592776523702,0.205592776523702,15.625051015801352,240,23,0,18.36,3,284.36]
[46,"BULUNGU EMMANUEL","EQUIPIER","BC0298","Kinshasa",27,null,119.96,126.27268623024828,8.5,37.880000000000003,69,6.31,18,254.31,230,16.415449209932277,2.5254537246049655,0.25254537246049658,19.193448306997741,273.5,23,0,21,3.36,320.86]
[47,"MALEMBE MASASU CALEB","EQUIPIER","BC0275","Kinshasa",26,null,112.2389616252822,118.1462753950339,8.5,35.443882618510166,78,5.9073137697516946,16.829999999999998,243.74,221,15.359015801354408,2.3629255079006781,0.23629255079006778,17.958233860045155,261.69,23,0,19.89,3.1824000000000003,307.76]
[48,"MIZELE GUELORD","EQUIPIER","BC0276","Kinshasa",18,null,57.567720000000008,60.597600000000007,8.5,18.179280000000002,54,3.0298800000000004,8.6300000000000008,164.66,153,7.8776880000000009,1.2119520000000001,0.12119520000000002,9.2108352000000018,173.87,23,0,13.77,2.2000000000000002,212.84]
[49,"NGOY ROLLY","EQUIPIER","BC0266","Kinshasa",23,null,90.79,95.572911963882618,8.5,28.67,69,4.7786455981941316,14,215,196,12.424478555304741,1.9114582392776525,0.19114582392776527,14.52708261851016,230,23,0,18,3,274]
[50,"APELA MABOSO MATHY","EQUIPIER","BC309","Kinshasa",22,null,111.38117381489843,117.24334085778781,10,35.173002257336343,66,5.8621670428893911,16.7,242.56,220,15.241634311512417,2.3448668171557565,0.23448668171557563,17.820987810383748,260.38,23,0,19.8,3.16,306.33999999999997]
[51,"BEKA NZONZIMBU BODARD","EQUIPIER","BC310","Kinshasa",27,null,154.27056433408578,162.39006772009026,10,48.717020316027082,78,8.1195033860045136,23.14,301.26,270,21.110708803611736,3.2478013544018052,0.32478013544018058,24.683290293453723,312.83,23,0,24.3,3.88,364.01]
[52,"NTUMBA DISANKA TIMOTHE","TAPISSIER","BC0232","Kinshasa",21,null,138.83038374717844,146.13724604966154,12,43.841173814898461,61,7.31,20.82,280.13,252,18.997841986456002,2.9227449209932308,0.2922744920993231,22.212861399548558,302.33999999999997,23,0,22.68,3.62,351.64]
[53,"TUBAJIKA FAN-FAN","LINGER","BC0245","Kinshasa",23,null,90.7942663656885,95.572911963882618,8.5,28.67,69,4.7786455981941316,14,215,196,12.424478555304741,1.9114582392776525,0.19114582392776527,14.52708261851016,230,23,0,18,3,274]
[54,"TSHIBAMBE KADIMA ALPHONSE","REPASSEUR","BC0228","Kinshasa",27,null,119.96,126.27268623024828,8.5,37.880000000000003,69,6.31,18,254.31,230,16.415449209932277,2.5254537246049655,0.25254537246049658,19.193448306997741,273.5,23,0,21,3.36,320.86]
[55,"BANGANA MUSSO BOBO","REPASSEUR","BC0229","Kinshasa",23,null,90.79,95.572911963882618,8.5,28.67,69,4.7786455981941316,14,215,196,12.424478555304741,1.9114582392776525,0.19114582392776527,14.52708261851016,230,23,0,18,3,274]
[56,"IMBAY MANIO PAPY BLANCHY","REPASSEUR","BC0233","Kinshasa",27,null,119.96,126.27268623024828,8.5,37.880000000000003,69,6.31,18,254.31,230,16.415449209932277,2.5254537246049655,0.25254537246049658,19.193448306997741,273.5,23,0,21,3.36,320.86]
[57,"NSIMBA SEVERAIN","REPASSEUR","BC0246","Kinshasa",24,null,97.656568848758454,102.79638826185101,8.5,31,72,5.1398194130925514,15,224.14,204,13.363530474040632,2.05592776523702,0.205592776523702,15.625051015801352,240,23,0,18.36,3,284.36]
[58,"SOMANA MICHEL","REPASSEUR","BC0261","Kinshasa",23,null,90.7942663656885,95.572911963882618,8.5,28.67,69,4.7786455981941316,14,215,196,12.424478555304741,1.9114582392776525,0.19114582392776527,14.52708261851016,230,23,0,18,3,274]
[59,"FONDO FILS","REPASSEUR","BC0301","Kinshasa",21,null,77.33,81.397600000000025,8.5,24.419280000000008,63,4.07,12,195,179,10.581688000000003,1.6279520000000005,0.16279520000000006,12.372435200000005,207.37,23,0,16.11,3,249.48]
[60,"BACHO CHOGO PRINCE","HOUSE LAUDRY","BC0264","Kinshasa",23,null,90.7942663656885,95.572911963882618,8.5,28.67,69,4.7786455981941316,14,215,196,12.424478555304741,1.9114582392776525,0.19114582392776527,14.52708261851016,230,23,0,18,3,274]
[61,"BISONSA REGINA PRECIEUSE","HOUSE LAUDRY","BC0256","Kinshasa",23,null,90.7942663656885,95.572911963882618,8.5,28.67,69,4.7786455981941316,14,215,196,12.424478555304741,1.9114582392776525,0.19114582392776527,14.52708261851016,230,23,0,18,3,274]
[62,"KABA ALPHONSE","HOUSE LAUDRY","BC0265","Kinshasa",23,null,90.7942663656885,95.572911963882618,8.5,28.67,69,4.7786455981941316,14,215,196,12.424478555304741,1.9114582392776525,0.19114582392776527,14.52708261851016,230,23,0,18,3,274]
[null,null,null,null,null,null,null,null,null,null,null,null,null,null,null,6422,null,null,null,null,7555.23,713,null,583.08000000000004,95.5,8946.81]
[null,null,null,null,null,null,null,null,null,null,null,null,null,null,null,{"$f":"SUM(P5:P35)","v":6422},null,null,null,null,{"$f":"SUM(U5:U35)","v":7555.23},{"$f":"SUM(V5:V35)","v":713},null,{"$f":"SUM(X5:X35)","v":583.08000000000004},{"$f":"SUM(Y5:Y35)","v":95.499200000000002},{"$f":"U37+V37+X37+Y37","v":8946.8091999999997}]
[null,null,null,null,null,null,null,null,null,null,null,null,null,null,null,{"$f":"SUM(P36-P37)","v":0},null,null,null,null,{"$f":"SUM(U36-U37)","v":0},{"$f":"SUM(V36-V37)","v":0},null,{"$f":"SUM(X36-X37)","v":0},{"$f":"SUM(Y36-Y37)","v":7.9999999999813554E-4},{"$f":"SUM(Z36-Z37)","v":7.9999999979918357E-4}]

{"sheet":"Feuil7","index":13,"n_rows":36,"n_cols":26,"rows_kept":36,"cut":false,"hidden":false,"merged":[[2,11,3,11],[2,12,3,12],[2,13,3,13],[2,0,3,0],[2,1,3,1],[2,2,3,2],[2,3,3,3],[2,4,3,4],[2,7,3,7],[37,0,43,16383],[2,20,3,20],[2,21,3,21],[2,22,3,22],[2,23,3,23],[2,24,3,24],[2,25,3,25],[2,14,3,14],[2,15,3,15],[2,16,3,16],[2,17,3,17],[2,18,3,18],[2,19,3,19],[2,8,3,8],[2,9,3,9],[2,10,3,10]]}
[]
[null,null,null,null,null,null,null,null,null,"ETAT DE PAIE GRANDS HOTELS DU CONGO JUILLET 2022"]
["N°","Noms","Fonction","Matricule","Localisation","Pointage du mois",null,"Base imposable","Plafond INSS","Salaire journalier","Ind. Logement ","Ind. Transp ","CNSS QPO","IPR ","Masse salariale","Net à payer","CNSS QPP ","INPP ","ONEM ","Total Charges patronales","Coût salarial ","Soins Medicaux 23$ par famille","Autre prime","Frais de Services 9%","TVA 16% Frais de Services","Total Employeur mensuel"]
[null,null,null,null,null,"Jrs prestés","Jour maladie"]
[63,"TENDAYI DAVID","HOUSE LAUDRY","BC0289","Kinshasa",23,null,90.7942663656885,95.572911963882618,8.5,28.67,69,4.7786455981941316,14,215,196,12.424478555304741,1.9114582392776525,0.19114582392776527,14.52708261851016,230,23,0,18,3,274]
[64,"KABONGO FANNY ","SUPERVISEUR ","BC0267","Kinshasa",26,null,265.68004514672685,279.66320541760723,15.38,83.898961625282155,78,13.983160270880362,39.85,454,400,36.35621670428894,5.5932641083521437,0.5593264108352145,42.508807223476303,496.51,23,0,36,6,561.51]
[65,"KAPITA NANCY","SUPERVISEUR ","BC0268","Kinshasa",20,null,186.86650112866823,196.70158013544025,15.38,59.010474040632069,60,9.8350790067720144,28.03,345.87,308.00000000000011,25.571205417607235,3.9340316027088051,0.39340316027088051,29.89864018058692,375.77,23,0,27.72,4.43,430.92]
[66,"KUMBA KIONGA NEHEMIE","SUPERVISEUR ","BC0284","Kinshasa",26,null,265.68004514672685,279.66320541760723,15.38,83.898961625282155,78,13.983160270880362,39.85,454,400,36.35621670428894,5.5932641083521437,0.5593264108352145,42.508807223476303,496.51,23,0,36,6,561.51]
[67,"PALUKU THOM","SUPERVISEUR ","BC0299","Kinshasa",24,null,239.19155756207684,251.7805869074493,15.38,75.534176072234786,72,12.589029345372467,35.869999999999997,417.46,369.00000000000006,32.731476297968406,5.0356117381489858,0.50356117381489862,38.270649209932294,496.51,23,0,33.21,5.3136000000000001,558.03359999999998]
[68,"IPAKALA FABRICE ","SERVEUR","BC0208","Kinshasa",22,null,83.407720000000012,87.797600000000017,8.5,26.339280000000006,66,4.3899999999999997,12.51,203.9,187,11.413688000000004,1.7559520000000004,0.17559520000000003,13.345235200000005,217.25,23,0,16.829999999999998,3,260.08]
[69,"SAKWA GLODIE","SERVEUSE","BC0209","Kinshasa",20,null,70.487719999999996,74.197600000000008,8.5,22.26,60,3.71,10.57,184.28,170,9.6456880000000016,1.4839520000000002,0.1483952,11.278035200000003,195.56,23,0,15.3,2.44,236.3]
[70,"MONDO DORCAS","SERVEUSE","BC0210","Kinshasa",21,null,77.327719999999999,81.397600000000025,8.5,24.419280000000008,63,4.07,12,195,179,10.581688000000003,1.6279520000000005,0.16279520000000006,12.372435200000005,207.37,23,0,16.11,3,249.48]
[71,"MPONGO ALBA","SERVEUR","BC0211","Kinshasa",23,null,90.7942663656885,95.572911963882618,8.5,28.67,69,4.7786455981941316,14,215,196,12.424478555304741,1.9114582392776525,0.19114582392776527,14.52708261851016,230,23,0,18,3,274]
[72,"KATIKA MAAN","SERVEUR","BC0212","Kinshasa",21,null,77.327719999999999,81.397600000000025,8.5,24.419280000000008,63,4.07,12,195,179,10.581688000000003,1.6279520000000005,0.16279520000000006,12.372435200000005,207.37,23,0,16.11,3,249.48]
[73,"ITSHIEKI REBECCA","SERVEUSE","BC0217","Kinshasa",21,null,77.327719999999999,81.397600000000025,8.5,24.419280000000008,63,4.07,12,195,179,10.581688000000003,1.6279520000000005,0.16279520000000006,12.372435200000005,207.37,23,0,16.11,3,249.48]
[74,"SIKI PRISCILLIA","SERVEUSE","BC0203","Kinshasa",22,null,83.407720000000012,87.797600000000017,8.5,26.339280000000006,66,4.3899999999999997,12.51,203.9,187,11.413688000000004,1.7559520000000004,0.17559520000000003,13.345235200000005,217.25,23,0,16.829999999999998,3,260.08]
[75,"LUTETE GRACE","SERVEUSE","BC0204","Kinshasa",23,null,90.7942663656885,95.572911963882618,8.5,28.67,69,4.7786455981941316,14,215,196,12.424478555304741,1.9114582392776525,0.19114582392776527,14.52708261851016,230,23,0,18,3,274]
[76,"MAKABUKA BODINA","SERVEUR","BC0205","Kinshasa",20,null,70.487719999999996,74.197600000000008,8.5,22.26,60,3.71,10.57,184.28,170,9.6456880000000016,1.4839520000000002,0.1483952,11.278035200000003,195.56,23,0,15.3,2.44,236.3]
[77,"MOSENGE FISTON","SERVEUR","BC0206","Kinshasa",21,null,77.327719999999999,81.397600000000025,8.5,24.419280000000008,63,4.07,12,195,179,10.581688000000003,1.6279520000000005,0.16279520000000006,12.372435200000005,207.37,23,0,16.11,3,249.48]
[78,"NKUNA EMMANY","SERVEUR","BC0236","Kinshasa",5,null,24.51,25.8,8.5,7.74,15,1.29,1,45.29,43,3.35,0.52,0.05,3.92,49.21,23,0,3.87,0.61,76.69]
[79,"MUBELO DIVINE","SERVEUSE","BC0238","Kinshasa",19,null,64.407719999999998,67.797599999999989,8.5,20.339279999999995,57,3.3898799999999998,10,175.39,162,8.8136879999999991,1.3559519999999998,0.13559519999999997,10.31,186,23,0,15,2.4,226.4]
[80,"LOMBO JEAN MICHEL","SERVEUR","BC0224","Kinshasa",21,null,77.327719999999999,81.397600000000025,8.5,24.419280000000008,63,4.07,12,195,179,10.581688000000003,1.6279520000000005,0.16279520000000006,12.372435200000005,207.37,23,0,16.11,3,249.48]
[81,"TEMUNA NAOMIE","SERVEUSE","BC0225","Kinshasa",20,null,70.487719999999996,74.197600000000008,8.5,22.26,60,3.71,10.57,184.28,170,9.6456880000000016,1.4839520000000002,0.1483952,11.278035200000003,195.56,23,0,15.3,2.44,236.3]
[82,"BENGA FUELE HENRY","SERVEUR","BC0259","Kinshasa",27,null,129.39471783295707,136.20496613995482,9.6199999999999992,40.86148984198644,78.003,7.2592076749435588,19.399999999999999,257.60000000000002,241,17.706645598194125,2.7240993227990962,0.27240993227990962,20.70315485327313,278.3,23,0,21.6,3.45,326.35000000000002]
[83,"DIMBU JOHN ","SERVEUR","BC0260","Kinshasa",26,null,112.2389616252822,118.1462753950339,8.5,35.443882618510166,78,5.9073137697516946,16.829999999999998,243.74,221,15.359015801354408,2.3629255079006781,0.23629255079006778,17.958233860045155,261.69,23,0,19.89,3.1824000000000003,307.76]
[84,"KANKU DANNY","SERVEUR","BC0277","Kinshasa",22,null,83.41,87.797600000000017,8.5,26.339280000000006,66,4.3899999999999997,12.51,203.9,187,11.413688000000004,1.7559520000000004,0.17559520000000003,13.345235200000005,217.25,23,0,16.829999999999998,3,260.08]
[85,"MPENZO YVES","SERVEUR","BC0271","Kinshasa",21,null,77.33,81.397600000000025,8.5,24.419280000000008,63,4.07,12,195,179,10.581688000000003,1.6279520000000005,0.16279520000000006,12.372435200000005,207.37,23,0,16.11,3,249.48]
[86,"MVODI JORHAM","SERVEUR","BC0278","Kinshasa",22,null,83.41,87.797600000000017,8.5,26.339280000000006,66,4.3899999999999997,12.51,203.9,187,11.413688000000004,1.7559520000000004,0.17559520000000003,13.345235200000005,217.25,23,0,16.829999999999998,3,260.08]
[87,"NGANDI FRANCIS ","SERVEUR","BC0279","Kinshasa",21,null,77.33,81.397600000000025,8.5,24.419280000000008,63,4.07,12,195,179,10.581688000000003,1.6279520000000005,0.16279520000000006,12.372435200000005,207.37,23,0,16.11,3,249.48]
[88,"YABEKPA NGATO CLEMENCE","SERVEUSE","BC0280","Kinshasa",19,null,64.407720000000012,67.797600000000017,8.5,20.339280000000006,57,3.39,9.6,174.39,162,8.8136880000000044,1.3559520000000005,0.13559520000000003,10.305235200000004,184.7,23,0,14.58,2.33,224.61]
[89,"MFUTA DORCAS","SERVEUSE","BC0302","Kinshasa",20,null,70.487719999999996,74.197600000000008,8.5,22.26,60,3.71,10.57,184.28,170,9.6456880000000016,1.4839520000000002,0.1483952,11.278035200000003,195.56,23,0,15.3,2.44,236.3]
[90,"BAENDE LUCIE","SERVEUSE","BC0303","Kinshasa",24,null,97.66,102.79638826185101,8.5,31,72,5.1398194130925514,15,224.14,204,13.363530474040632,2.05592776523702,0.205592776523702,15.625051015801352,240,23,0,18.36,3,284.36]
[91,"BASUBI AMANI JACQUES","SERVEUR","BC0255","Kinshasa",21,null,199.73331828442448,210.24559819413105,15.38,63.073679458239312,78,10.512279909706553,17.809997742663672,351.32,323.00000000000011,27.331927765237037,4.2049119638826218,0.4204911963882621,31.957330925507922,383.28,23,0,29.07,4.6500000000000004,440]
[92,"MOLOSA ANDY","SERVEUR ","BC0400","Kinshasa",24,null,97.66,102.79638826185101,8.5,31,72,5.1398194130925514,15,224.14,204,13.363530474040632,2.05592776523702,0.205592776523702,15.625051015801352,240,23,0,18.36,3,284.36]
[93,"ADJONGA DANNY","SERVEUR","BC0401","Kinshasa",24,null,97.66,102.79638826185101,8.5,31,72,5.1398194130925514,15,224.14,204,13.363530474040632,2.05592776523702,0.205592776523702,15.625051015801352,240,23,0,18.36,3,284.36]
[null,null,null,null,null,null,null,null,null,null,null,null,null,null,null,6510,null,null,null,null,7721.31,713,null,587.30999999999995,99.13,9120.75]

{"sheet":"Feuil8","index":14,"n_rows":26,"n_cols":25,"rows_kept":26,"cut":false,"hidden":false,"merged":[[2,10,3,10],[2,11,3,11],[2,12,3,12],[2,0,3,0],[2,1,3,1],[2,2,3,2],[2,3,3,3],[2,4,3,4],[2,6,3,6],[27,0,33,16383],[2,19,3,19],[2,20,3,20],[2,21,3,21],[2,22,3,22],[2,23,3,23],[2,24,3,24],[2,13,3,13],[2,14,3,14],[2,15,3,15],[2,16,3,16],[2,17,3,17],[2,18,3,18],[2,7,3,7],[2,8,3,8],[2,9,3,9]]}
[]
[null,null,null,null,null,null,null,null,"ETAT DE PAIE GRANDS HOTELS DU CONGO JUILLET 2022"]
["N°","Noms","Fonction","Matricule","Localisation","Pointage du mois","Base imposable","Plafond INSS","Salaire journalier","Ind. Logement ","Ind. Transp ","CNSS QPO","IPR ","Masse salariale","Net à payer","CNSS QPP ","INPP ","ONEM ","Total Charges patronales","Coût salarial ","Soins Medicaux 23$ par famille","Autre prime","Frais de Services 9%","TVA 16% Frais de Services","Total Employeur mensuel"]
[null,null,null,null,null,"Jrs prestés"]
[94,"MAYOLA ESPOIR ","SERVEUR","BC0403","Kinshasa",24,97.66,102.79638826185101,8.5,31,72,5.1398194130925514,15,224.14,204,13.363530474040632,2.05592776523702,0.205592776523702,15.625051015801352,240,23,0,18.36,3,284.36]
[95,"MATUALA MILTON","SERVEUR","BC0404","Kinshasa",24,97.66,102.79638826185101,8.5,31,72,5.1398194130925514,15,224.14,204,13.363530474040632,2.05592776523702,0.205592776523702,15.625051015801352,240,23,0,18.36,3,284.36]
[96,"KEMBO DON SALEM","MAITRE D'HOTEL","BC0250","Kinshasa",5,0.19,0.2,15.38,0.06,15,0.01,0.75,77.760000000000005,77,0.03,0,0,0.03,77.790000000000006,23,0,6.9,1.1000000000000001,108.79]
[97,"KADIMA KABEYA RICHE","SUPERVISEUR ","BC0290","Kinshasa",5,7.79,8.1999999999999993,13.46,2.46,15,0.41,0.75,68.16,67,1.07,0.16,0.02,1.25,69.41,23,0,6.03,0.96,99.4]
[98,"MUKWA EDITH","BARMAID","BC0425","Kinshasa",24,97.66,102.79638826185101,8.5,31,72,5.1398194130925514,15,224.14,204,13.363530474040632,2.05592776523702,0.205592776523702,15.625051015801352,240,23,0,18.36,3,284.36]
[99,"ILUNGA IDRISS","SUPERVISEUR ","BC0426","Kinshasa",24,199.73331828442463,210.24559819413119,13.46,63.073679458239354,72,17.809999999999999,29.95,370.76,323,27.331927765237054,4.2049119638826244,0.42049119638826238,31.957330925507939,402.72,23,0,29.07,4.6500000000000004,459.44]
[100,"LIKOY CHRISTELLE","HOTESSE ","BC0427","Kinshasa",24,199.73331828442463,210.24559819413119,13.46,63.073679458239354,72,17.809999999999999,29.95,370.76,323,27.331927765237054,4.2049119638826244,0.42049119638826238,31.957330925507939,402.72,23,0,29.07,4.6500000000000004,459.44]
[101,"TSHIEBWE KABINDA ALEXANDRA","HOTESSE ","BC0428","Kinshasa",21,165.42180586907449,174.12821670428895,15.9,52.238465011286678,63,8.7064108352144469,24.81,316.52,283.00000000000006,22.636668171557563,3.4825643340857786,0.34825643340857787,26.467488939051915,342.99,23,0,25.47,4.07,395.53]
[102,"BUERE BUERE MEDARD","ARCHIVISTE ","BC0291","Kinshasa",26,257.20510158013548,270.74221218961628,15,81.222663656884876,78,13.537110609480814,38.58,442.12,390,35.196487584650114,5.4148442437923254,0.54148442437923261,41.15281625282168,483.27,23,0,35.1,5.61,546.98]
[103,"MALEMO NAKWETI ARNOLD","INFIRMIER","BC0429","Kinshasa",26,257.20510158013548,270.74221218961628,15,81.222663656884876,78,13.537110609480814,38.58,442.12,390,35.196487584650114,5.4148442437923254,0.54148442437923261,41.15281625282168,483.27,23,0,35.1,5.61,546.98]
[104,"BETU MICHEL","AGENT SEC","BC0219","Kinshasa",17,70.487719999999996,74.197600000000008,10,22.26,60,3.71,10.57,184.28,170,9.6456880000000016,1.4839520000000002,0.1483952,11.278035200000003,195.56,23,0,15.3,2.44,236.3]
[105,"IBANDA NICOLAS","AGENT SEC","BC0220","Kinshasa",26,145.69,153.36072234762972,10,46.008216704288913,78,7.6680361173814866,21.85,289.52,259.99999999999989,19.936893905191866,3.0672144469525948,0.30672144469525942,23.31082979683972,312.83,23,0,23.399999999999988,3.743999999999998,362.97]
[106,"NKENDA JUNETTE","AGENT SEC","BC0221","Kinshasa",26,145.69,153.36072234762972,10,46.008216704288913,78,7.6680361173814866,21.85,289.52,259.99999999999989,19.936893905191866,3.0672144469525948,0.30672144469525942,23.31082979683972,312.83,23,0,23.399999999999988,3.743999999999998,362.97]
[107,"KAPELA DIVINE ","AGENT SEC","BC0222","Kinshasa",26,145.69,153.36072234762972,10,46.008216704288913,78,7.6680361173814866,21.85,289.52,259.99999999999989,19.936893905191866,3.0672144469525948,0.30672144469525942,23.31082979683972,312.83,23,0,23.399999999999988,3.743999999999998,362.97]
[108,"KAMENGA MPALA FISTON","PLOMBIER","BCO219","Kinshasa",26,145.69,153.36072234762972,10,46.008216704288913,78,7.6680361173814866,21.85,289.52,259.99999999999989,19.936893905191866,3.0672144469525948,0.30672144469525942,23.31082979683972,312.83,23,0,23.4,3.743999999999998,362.97]
[109,"BINDA PATRICK","JARDINIER","BC0292","Kinshasa",26,197.15995485327289,207.5367945823925,12.31,62.261038374717749,78,10.376839729119625,29.57,359.95,319.99999999999972,26.979783295711027,4.1507358916478498,0.41507358916478498,31.545592776523662,391.5,23,0,28.8,4.5999999999999996,447.9]
[110,"MUKUTU NZILA MOLENDE","TOUT TRAVAUX","BC0293","Kinshasa",26,145.69,153.36072234762972,10,46.008216704288913,78,7.6680361173814866,21.85,289.52,259.99999999999989,19.936893905191866,3.0672144469525948,0.30672144469525942,23.31082979683972,312.83,23,0,23.399999999999988,3.743999999999998,362.97]
[111,"MAVUNGU SINGA DALLY","MAGASINIER","BC0294","Kinshasa",26,145.69,153.36072234762972,10,46.008216704288913,78,7.6680361173814866,21.85,289.52,259.99999999999989,19.936893905191866,3.0672144469525948,0.30672144469525942,23.31082979683972,312.83,23,0,23.399999999999988,3.743999999999998,362.97]
[112,"NZANGAMA JOEL","FRIGORISTE","BC304","Kinshasa",26,145.69,153.36072234762972,10,46.008216704288913,78,7.6680361173814866,21.85,289.52,259.99999999999989,19.936893905191866,3.0672144469525948,0.30672144469525942,23.31082979683972,312.83,23,0,23.399999999999988,3.743999999999998,362.97]
[113,"LUYINDULA ALDIN","TOUT TRAVAUX","BC0297","Kinshasa",26,145.69,153.36072234762972,10,46.008216704288913,78,7.6680361173814866,21.85,289.52,259.99999999999989,19.936893905191866,3.0672144469525948,0.30672144469525942,23.31082979683972,312.83,23,0,23.399999999999988,3.743999999999998,362.97]
[114,"MATOMINA THOS","PEINTRE","BC0400","Kinshasa",24,128.53693002257339,135.30203160270884,10,40.590609480812645,69,6.77,19.28,266.05,240,17.589264108352147,2.7060406320541763,0.27060406320541769,20.565908803611741,286.62,23,0,21.6,3.45,334.67]
[null,null,null,null,null,null,null,null,null,null,null,null,null,null,5275,null,null,null,null,6358.49,483,null,474.72,76.09,7392.3]